Workbook

Sheet Tabella Articolo 3 (hidden)
A1: AMBITO DI INTERVENTO | B1: Assegnazione FSC 21-27 | E1: Cofinanziamenti | J1: Ammontare complessivo investimenti | K1: Numero interventi/linee di azione
B2: Risorse FSC 21-27 (ass. ordinariaria) | C2: (1) Risorse FSC 21-27 (Anticipazione) | D2: Totale Assegnazione | E2: Altre Risorse Ordinarie Regionali e Locali | F2: Risorse FSC 2014-2020 Ministeriali | G2: Altre Risorse Ordinarie Nazionali | H2: Privati | I2: Totale Cofinanziamento con altre risorse
A3: Ricerca e innovazione | B3: 0 | C3: 4,000,000.00 | D3: =SUM(B3:C3) -> 4,000,000.00 | E3: 0 | F3: 0 | G3: 0 | H3: 0 | I3: =SUM(E3:H3) -> 0 | J3: =D3+I3 -> 4,000,000.00 | K3: 1
A4: Digitalizzazione | B4: ='[3]Elenco per Accordo modif F_BASS'!J4 -> 2,500,000.00 | C4: 4,097,232.72 | D4: =SUM(B4:C4) -> 6,597,232.72 | E4: 0 | F4: 0 | G4: 0 | H4: 0 | I4: =SUM(E4:H4) -> 0 | J4: =D4+I4 -> 6,597,232.72 | K4: 3
A5: Competitività e imprese | B5: ='[3]Elenco per Accordo modif F_BASS'!J7 -> 35,150,000.00 | C5: 0 | D5: =SUM(B5:C5) -> 35,150,000.00 | E5: 0 | F5: 0 | G5: 0 | H5: 0 | I5: =SUM(E5:H5) -> 0 | J5: =D5+I5 -> 35,150,000.00 | K5: 2
A6: Ambiente e risorse naturali | B6: ='[3]Elenco per Accordo modif F_BASS'!J33 -> 134,600,000.00 | C6: 29,685,000.00 | D6: =SUM(B6:C6) -> 164,285,000.00 | E6: =17735658.81+1000000+270274+500000+500000+500000+6843.21+3750000-6843.21 -> 24,255,932.81 | F6: 0 | G6: =3193156.79+5750101.09+1000000+197843.91+4315000+2500000+7500000+533395.2-3193156.79-1000000 -> 20,796,340.20 | H6: 0 | I6: =SUM(E6:H6) -> 45,052,273.01 | J6: =D6+I6 -> 209,337,273.01 | K6: 29
A7: Cultura | B7: ='[3]Elenco per Accordo modif F_BASS'!J36 -> 3,750,000.00 | C7: 0 | D7: =SUM(B7:C7) -> 3,750,000.00 | E7: 2,750,000.00 | F7: 0 | G7: 0 | H7: 0 | I7: =SUM(E7:H7) -> 2,750,000.00 | J7: =D7+I7 -> 6,500,000.00 | K7: 2
A8: Trasporti e mobilità | B8: ='[3]Elenco per Accordo modif F_BASS'!J62 -> 151,500,000.00 | C8: 23,250,000.00 | D8: =SUM(B8:C8) -> 174,750,000.00 | E8: =2699590.68+2208059.7+1525200+295798+7500000 -> 14,228,648.38 | F8: =1800000+22000000 -> 23,800,000.00 | G8: =5621041.84+65000000+6000000 -> 76,621,041.84 | H8: =8692000+2000000+17682200 -> 28,374,200.00 | I8: =SUM(E8:H8) -> 143,023,890.22 | J8: =D8+I8 -> 317,773,890.22 | K8: 30
A9: Riqualificazione urbana | B9: ='[3]Elenco per Accordo modif F_BASS'!J67 -> 22,000,000.00 | C9: 3,000,000.00 | D9: =SUM(B9:C9) -> 25,000,000.00 | E9: =1500000+1190000+477000+963914.29 -> 4,130,914.29 | F9: 0 | G9: 0 | H9: 0 | I9: =SUM(E9:H9) -> 4,130,914.29 | J9: =D9+I9 -> 29,130,914.29 | K9: 6
A10: Sociale e salute | B10: ='[3]Elenco per Accordo modif F_BASS'!J72 -> 26,000,000.00 | C10: 1,167,767.28 | D10: =SUM(B10:C10) -> 27,167,767.28 | E10: =7000000+700000+1000000 -> 8,700,000.00 | F10: 0 | G10: 0 | H10: 0 | I10: =SUM(E10:H10) -> 8,700,000.00 | J10: =D10+I10 -> 35,867,767.28 | K10: 5
A11: Istruzione e formazione | B11: ='[3]Elenco per Accordo modif F_BASS'!J74 -> 10,000,000.00 | C11: 4,000,000.00 | D11: =SUM(B11:C11) -> 14,000,000.00 | E11: 0 | F11: 0 | G11: 0 | H11: 0 | I11: 0 | J11: =D11+I11 -> 14,000,000.00 | K11: 2
A12: Capacità amministrativa | B12: 15,372,385.77 | C12: 0 | D12: =SUM(B12:C12) -> 15,372,385.77 | E12: 0 | F12: 0 | G12: 0 | H12: 0 | I12: =SUM(E12:H12) -> 0 | J12: =D12+I12 -> 15,372,385.77 | K12: 1
A13: Totale Aree Tematiche | B13: =SUM(B3:B12) -> 400,872,385.77 | C13: =SUM(C3:C12) -> 69,200,000.00 | D13: =SUM(D3:D12) -> 470,072,385.77 | E13: =SUM(E3:E12) -> 54,065,495.48 | F13: =SUM(F3:F12) -> 23,800,000.00 | G13: =SUM(G3:G12) -> 97,417,382.04 | H13: =SUM(H3:H12) -> 28,374,200.00 | I13: =SUM(I3:I12) -> 203,657,077.52 | J13: =SUM(J3:J12) -> 673,729,463.29 | K13: =SUM(K3:K12) -> 81.00
A14: Cofinanziamento PR (ove applicabile) | B14: =92500000+45000000 -> 137,500,000.00 | C14: 0 | D14: =SUM(B14:C14) -> 137,500,000.00
A15: Totale Assegnazione FSC 21-27 | B15: =SUM(B13:B14) -> 538,372,385.77 | C15: =SUM(C13:C14) -> 69,200,000.00 | D15: =SUM(D13:D14) -> 607,572,385.77

Sheet Tabella art 3 Accordo
A1: AMBITO DI INTERVENTO | B1: Assegnazione FSC 21-27 | E1: Cofinanziamenti | J1: Ammontare complessivo investimenti | K1: Numero interventi/linee di azione
B2: Risorse FSC 21-27 (ass. ordinariaria) | C2: (1) Risorse FSC 21-27 (Anticipazione) | D2: Totale Assegnazione | E2: Altre Risorse Ordinarie Regionali e Locali | F2: Risorse FSC 2014-2020 Ministeriali | G2: Altre Risorse Ordinarie Nazionali | H2: Privati | I2: Totale Cofinanziamento con altre risorse
A3: Ricerca e innovazione | B3: 0 | C3: 4,000,000.00 | D3: =SUM(B3:C3) -> 4,000,000.00 | E3: 0 | F3: 0 | G3: 0 | H3: 0 | I3: =SUM(E3:H3) -> 0 | J3: =D3+I3 -> 4,000,000.00 | K3: 1
A4: Digitalizzazione | B4: 2,500,000.00 | C4: 4,097,232.72 | D4: =SUM(B4:C4) -> 6,597,232.72 | E4: 0 | F4: 0 | G4: 0 | H4: 0 | I4: =SUM(E4:H4) -> 0 | J4: =D4+I4 -> 6,597,232.72 | K4: 3
A5: Competitività e imprese | B5: 35,150,000.00 | C5: 0 | D5: =SUM(B5:C5) -> 35,150,000.00 | E5: 0 | F5: 0 | G5: 0 | H5: 0 | I5: =SUM(E5:H5) -> 0 | J5: =D5+I5 -> 35,150,000.00 | K5: 2
A6: Ambiente e risorse naturali | B6: 134,600,000.00 | C6: 29,685,000.00 | D6: =SUM(B6:C6) -> 164,285,000.00 | E6: =17735658.81-14616786.23+1000000+270274-20166+500000+6843.21+3750000-3750000-6843.21-1000000 -> 3,868,980.58 | F6: 0 | G6: =5750101.09+14616786.23+20166 -> 20,387,053.32 | H6: 3,750,000.00 | I6: =SUM(E6:H6) -> 28,006,033.90 | J6: =D6+I6 -> 192,291,033.90 | K6: 29
A7: Cultura | B7: 3,750,000.00 | C7: 0 | D7: =SUM(B7:C7) -> 3,750,000.00 | E7: 2,750,000.00 | F7: 0 | G7: 0 | H7: 0 | I7: =SUM(E7:H7) -> 2,750,000.00 | J7: =D7+I7 -> 6,500,000.00 | K7: 2
A8: Trasporti e mobilità | B8: 151,500,000.00 | C8: 23,250,000.00 | D8: =SUM(B8:C8) -> 174,750,000.00 | E8: =2699590.68+2208059.7+1525200+295798 -> 6,728,648.38 | F8: =1800000 -> 1,800,000.00 | G8: =5621041.84+65000000+6000000 -> 76,621,041.84 | H8: =8692000+2000000 -> 10,692,000.00 | I8: =SUM(E8:H8) -> 95,841,690.22 | J8: =D8+I8 -> 270,591,690.22 | K8: 30
A9: Riqualificazione urbana | B9: 22,000,000.00 | C9: 3,000,000.00 | D9: =SUM(B9:C9) -> 25,000,000.00 | E9: =1500000 -> 1,500,000.00 | F9: 0 | G9: 0 | H9: 0 | I9: =SUM(E9:H9) -> 1,500,000.00 | J9: =D9+I9 -> 26,500,000.00 | K9: 6
A10: Sociale e salute | B10: 26,000,000.00 | C10: 1,167,767.28 | D10: =SUM(B10:C10) -> 27,167,767.28 | E10: =7000000+1000000 -> 8,000,000.00 | F10: 0 | G10: 0 | H10: 0 | I10: =SUM(E10:H10) -> 8,000,000.00 | J10: =D10+I10 -> 35,167,767.28 | K10: 5
A11: Istruzione e formazione | B11: 10,000,000.00 | C11: 4,000,000.00 | D11: =SUM(B11:C11) -> 14,000,000.00 | E11: 0 | F11: 0 | G11: 0 | H11: 0 | I11: 0 | J11: =D11+I11 -> 14,000,000.00 | K11: 2
A12: Capacità amministrativa | B12: 15,372,385.77 | C12: 0 | D12: =SUM(B12:C12) -> 15,372,385.77 | E12: 0 | F12: 0 | G12: 0 | H12: 0 | I12: =SUM(E12:H12) -> 0 | J12: =D12+I12 -> 15,372,385.77 | K12: 1
A13: Totale Aree Tematiche | B13: =SUM(B3:B12) -> 400,872,385.77 | C13: =SUM(C3:C12) -> 69,200,000.00 | D13: =SUM(D3:D12) -> 470,072,385.77 | E13: =SUM(E3:E12) -> 22,847,628.96 | F13: =SUM(F3:F12) -> 1,800,000.00 | G13: =SUM(G3:G12) -> 97,008,095.16 | H13: =SUM(H3:H12) -> 14,442,000.00 | I13: =SUM(I3:I12) -> 136,097,724.12 | J13: =SUM(J3:J12) -> 606,170,109.89 | K13: =SUM(K3:K12) -> 81
A14: Cofinanziamento PR (ove applicabile) | B14: 137,500,000.00 | C14: 0 | D14: =SUM(B14:C14) -> 137,500,000.00
A15: Totale Assegnazione FSC 21-27 | B15: =SUM(B13:B14) -> 538,372,385.77 | C15: =SUM(C13:C14) -> 69,200,000.00 | D15: =SUM(D13:D14) -> 607,572,385.77

Sheet Allegato A1 Programma di interv
A3: ID | B3: AMMINISTRAZIONE | C3: AREATEMATICA | D3: LINEA DI INTERVENTO | E3: CUP | F3: TITOLO | G3: COSTO TOTALE | H3: IMPORTO RICHIESTO FSC 21-27 | I3: COFINANZIAMENTO CON ALTRE RISORSE | J3: PROGRAMMAZIONE PREVISIONE INIZIO | K3: PROGRAMMAZIONE PREVISIONE FINE | L3: PROGETTAZIONE PREVISIONE INIZIO | M3: PROGETTAZIONE PREVISIONE FINE | N3: ESECUZIONE PREVISIONE INIZIO | O3: ESECUZIONE PREVISIONE FINE | P3: DATA APERTURA AVVISO | Q3: DATA CHIUSURA AVVISO | R3: DATA ATTIVAZIONE MISURA
A4: FSCRI_RI_408 | B4: REGIONE DEL VENETO - DIREZIONE ICT, AGENDA DIGITALE E SOS AFFIDAMENTO SERVIZI E FORNITURE ICT | C4: 02. DIGITALIZZAZIONE | D4: 02.01 TECNOLOGIE E SERVIZI DIGITALI | E4: H17H23002790001 | F4: EVOLUZIONE PIATTAFORMA LIZARD | G4: 2,000,000.00 | H4: 2,000,000.00 | I4: 0 | J4: 1_SEMESTRE_2023 | K4: 1_SEMESTRE_2023 | L4: 2_SEMESTRE_2023 | M4: 1_SEMESTRE_2024 | N4: 1_SEMESTRE_2025 | O4: 1_SEMESTRE_2026 | P4: NA | Q4: NA | R4: NA
A5: FSCRI_RI_536 | B5: REGIONE DEL VENETO | C5: 02. DIGITALIZZAZIONE | D5: 02.01 TECNOLOGIE E SERVIZI DIGITALI | E5: H59B23000130001 | F5: PRODUZIONE DATI GEOTOPOGRAFICI PER INFRASTRUTTURA DATI TERRITORIALI DELLA REGIONE DEL VENETO IDT-RV | G5: 500,000.00 | H5: 500,000.00 | I5: 0 | J5: 2_SEMESTRE_2023 | K5: 2_SEMESTRE_2023 | L5: 1_SEMESTRE_2024 | M5: 1_SEMESTRE_2025 | N5: 2_SEMESTRE_2025 | O5: 2_SEMESTRE_2026 | P5: NA | Q5: NA | R5: NA
A6: FSCRI_RM_1740 | B6: REGIONE DEL VENETO | C6: 03. COMPETITIVITA' IMPRESE | D6: 03.01 INDUSTRIA E SERVIZI | E6: CUP da generare a seguito della selezione dei progetti tramite Bando | F6: Fondo di rotazione "Anticrisi Attività Produttive” | G6: 21,000,000.00 | H6: 21,000,000.00 | I6: 0 | J6: NA | K6: NA | L6: NA | M6: NA | N6: NA | O6: NA | P6: 2025-04-01 | Q6: 31/12/2026
A7: FSCRI_RM_1744 | B7: REGIONE DEL VENETO | C7: 03. COMPETITIVITA' IMPRESE | D7: 03.01 INDUSTRIA E SERVIZI | E7: CUP da generare a seguito della selezione dei progetti tramite Bando | F7: Fondo Veneto Competitività - Sezione Transizione FSC | G7: 14,150,000.00 | H7: 14,150,000.00 | I7: 0 | J7: NA | K7: NA | L7: NA | M7: NA | N7: NA | O7: NA | R7: 2025-04-01
A8: FSCRI_RI_1667 | B8: CONSORZIO DI BONIFICA PIAVE | C8: 05. AMBIENTE E RISORSE NATURALI | D8: 05.01 RISCHI E ADATTAMENTO CLIMATICO | E8: H78H23000530005 | F8: RIPRISTINO DANNI OPERE PUBBLICHE IRRIGUE NEL TERRITORIO DELLE PROVINCE DI TREVISO E VENEZIA | G8: 500,000.00 | H8: 500,000.00 | I8: 0 | J8: 1_SEMESTRE_2023 | K8: 2_SEMESTRE_2023 | L8: 1_SEMESTRE_2024 | M8: 1_SEMESTRE_2025 | N8: 2_SEMESTRE_2025 | O8: 1_SEMESTRE_2026 | P8: NA | Q8: NA | R8: NA
A9: FSCRI_RI_382 | B9: CONSORZIO DI BONIFICA BACCHIGLIONE | C9: 05. AMBIENTE E RISORSE NATURALI | D9: 05.01 RISCHI E ADATTAMENTO CLIMATICO | E9: F41B21007590001 | F9: OTTIMIZZAZIONE BACINO PRATIARCATI - NUOVO COLLETTORE CARPANEDO-SABBIONI – 2° STRALCIO FUNZIONALE B | G9: 9,350,101.09 | H9: 3,600,000.00 | I9: 5,750,101.09 | L9: 2_SEMESTRE_2024 | M9: 1_SEMESTRE_2025 | N9: 2_SEMESTRE_2025 | O9: 2_SEMESTRE_2027 | P9: NA | Q9: NA | R9: NA
A10: FSCRI_RI_383 | B10: CONSORZIO DI BONIFICA ACQUE RISORGIVE | C10: 05. AMBIENTE E RISORSE NATURALI | D10: 05.01 RISCHI E ADATTAMENTO CLIMATICO | E10: I66F23000140002 | F10: FIUME MARZENEGO: CASSE DI ESPANSIONE E LAMINAZIONE PER LA RIDUZIONE DEI PICCHI DI PIENA – LOTTO 2 | G10: 6,500,000.00 | H10: 6,500,000.00 | I10: 0 | J10: 2_SEMESTRE_2023 | K10: 1_SEMESTRE_2024 | L10: 1_SEMESTRE_2024 | M10: 1_SEMESTRE_2025 | N10: 2_SEMESTRE_2025 | O10: 2_SEMESTRE_2031 | P10: NA | Q10: NA | R10: NA
A11: FSCRI_RI_384 | B11: CONSORZIO DI BONIFICA BRENTA – CITTADELLA (PD) | C11: 05. AMBIENTE E RISORSE NATURALI | D11: 05.01 RISCHI E ADATTAMENTO CLIMATICO | E11: J61B21004140001 | F11: TRASFORMAZIONE IRRIGUA NEI COMUNI DI CASSOLA, ROSÀ, ROSSANO VENETO E TEZZE SUL BRENTA PROV. VICENZA | G11: 9,750,000.00 | H11: 9,750,000.00 | I11: 0 | J11: 2_SEMESTRE_2023 | K11: 2_SEMESTRE_2023 | L11: 1_SEMESTRE_2024 | M11: 1_SEMESTRE_2025 | N11: 2_SEMESTRE_2025 | O11: 1_SEMESTRE_2027 | P11: NA | Q11: NA | R11: NA
A12: FSCRI_RI_407 | B12: REGIONE DEL VENETO – GIUNTA REGIONALE - DIREZIONE DIFESA DEL SUOLO E DELLA COSTA, SOS LAVORI E SERVIZI TECNICI | C12: 05. AMBIENTE E RISORSE NATURALI | D12: 05.01 RISCHI E ADATTAMENTO CLIMATICO | E12: H81B21000580002 | F12: REALIZZAZIONE DI UN INVASO (C.D. ANCONETTA) SUL FIUME AGNO GUÀ-S.CATERINA. ID PIANO 212. 2° STRALCIO | G12: 8,000,000.00 | H12: 8,000,000.00 | I12: 0 | L12: 2_SEMESTRE_2023 | M12: 1_SEMESTRE_2025 | N12: 2_SEMESTRE_2025 | O12: 2_SEMESTRE_2027 | P12: NA | Q12: NA | R12: NA
A13: FSCRI_RI_412 | B13: REGIONE DEL VENETO – GIUNTA REGIONALE - DIREZIONE DIFESA DEL SUOLO E DELLA COSTA, SOS LAVORI E SERVIZI TECNICI | C13: 05. AMBIENTE E RISORSE NATURALI | D13: 05.01 RISCHI E ADATTAMENTO CLIMATICO | E13: H52B23002650003 | F13: REALIZZAZIONE DELLA CASSA DI LAMINAZIONE SUL FIUME LIVENZA IN LOCALITÀ PRÀ DEI GAI. 2° STRALCIO | G13: 48,235,658.81 | H13: 30,500,000.00 | I13: 17,735,658.81 | L13: 1_SEMESTRE_2024 | M13: 2_SEMESTRE_2025 | N13: 1_SEMESTRE_2026 | O13: 2_SEMESTRE_2029 | P13: NA | Q13: NA | R13: NA
A14: FSCRI_RI_416 | B14: REGIONE DEL VENETO – GIUNTA REGIONALE - DIREZIONE DIFESA DEL SUOLO E DELLA COSTA, SOS LAVORI E SERVIZI TECNICI | C14: 05. AMBIENTE E RISORSE NATURALI | D14: 05.01 RISCHI E ADATTAMENTO CLIMATICO | E14: H62B23002770001 | F14: LAVORI DI SISTEMAZIONE DEL T. ARPEGA FINO ALLA CONFLUENZA CON IL BACINO SUL F. AGNO-GUÀ. 2° STRALCIO | G14: 3,000,000.00 | H14: 3,000,000.00 | I14: 0 | N14: 1_SEMESTRE_2025 | O14: 2_SEMESTRE_2026 | P14: NA | Q14: NA | R14: NA
A15: FSCRI_RI_457 | B15: REGIONE DEL VENETO – GIUNTA REGIONALE - DIREZIONE DIFESA DEL SUOLO E DELLA COSTA, SOS LAVORI E SERVIZI TECNICI | C15: 05. AMBIENTE E RISORSE NATURALI | D15: 05.01 RISCHI E ADATTAMENTO CLIMATICO | E15: H52B23002660001 | F15: REALIZZAZIONE DELLA CASSA DI LAMINAZIONE SUL FIUME LIVENZA IN LOCALITÀ PRÀ DEI GAI. 3° STRALCIO | G15: 9,500,000.00 | H15: 9,500,000.00 | I15: 0 | L15: 1_SEMESTRE_2024 | M15: 2_SEMESTRE_2025 | N15: 1_SEMESTRE_2026 | O15: 2_SEMESTRE_2029 | P15: NA | Q15: NA | R15: NA
A16: FSCRI_RI_462 | B16: CONSORZIO BONIFICA ALTA PIANURA VENETA | C16: 05. AMBIENTE E RISORSE NATURALI | D16: 05.01 RISCHI E ADATTAMENTO CLIMATICO | E16: B47H21005110001 | F16: RICOSTRUZIONE IDRAULICA TORRENTE MEZZANE SEZIONI DI DEFLUSSO COMUNE MEZZANE DI S.E LAVAGNO 21_013_FI | G16: 900,000.00 | H16: 900,000.00 | I16: 0 | L16: 2_SEMESTRE_2024 | M16: 1_SEMESTRE_2025 | N16: 2_SEMESTRE_2025 | O16: 2_SEMESTRE_2026 | P16: NA | Q16: NA | R16: NA
A17: FSCRI_RI_465 | B17: CONSORZIO DI BONIFICA BACCHIGLIONE | C17: 05. AMBIENTE E RISORSE NATURALI | D17: 05.01 RISCHI E ADATTAMENTO CLIMATICO | E17: F28H24000180001 | F17: RIPRISTINO SICUREZZA IDRAULICA RETE DI BONIFICA IN COMUNI VARI DELLA PROVINCIA DI PADOVA – STRALCIO | G17: 500,000.00 | H17: 500,000.00 | I17: 0 | L17: 2_SEMESTRE_2023 | M17: 1_SEMESTRE_2024 | N17: 1_SEMESTRE_2025 | O17: 1_SEMESTRE_2026 | P17: NA | Q17: NA | R17: NA
A18: FSCRI_RI_483 | B18: CONSORZIO DI BONIFICA ALTA PIANURA VENETA | C18: 05. AMBIENTE E RISORSE NATURALI | D18: 05.01 RISCHI E ADATTAMENTO CLIMATICO | E18: B34G23000010001 | F18: RECUPERO AREA DELLA CAVA "GUAINETTA" PER IRRIGAZIONE E LAMINAZIONE A SAN MARTINO BUON ALBERGO (VR) | G18: 3,000,000.00 | H18: 3,000,000.00 | I18: 0 | J18: 1_SEMESTRE_2023 | K18: 2_SEMESTRE_2023 | L18: 2_SEMESTRE_2023 | M18: 1_SEMESTRE_2025 | N18: 2_SEMESTRE_2025 | O18: 1_SEMESTRE_2027 | P18: NA | Q18: NA | R18: NA
A19: FSCRI_RI_484 | B19: CONSORZIO DI BONIFICA DELTA DEL PO | C19: 05. AMBIENTE E RISORSE NATURALI | D19: 05.01 RISCHI E ADATTAMENTO CLIMATICO | E19: J38H23001240001 | F19: MESSA IN SICUREZZA E RIORDINO IDRAULICO DELLA RETE IDRAULICA SECONDARIA TRA I FIUMI BRENTA E PO | G19: 1,000,000.00 | H19: 1,000,000.00 | I19: 0 | J19: 2_SEMESTRE_2023 | K19: 2_SEMESTRE_2024 | L19: 1_SEMESTRE_2024 | M19: 1_SEMESTRE_2025 | N19: 2_SEMESTRE_2025 | O19: 2_SEMESTRE_2026 | P19: NA | Q19: NA | R19: NA
A20: FSCRI_RI_485 | B20: REGIONE DEL VENETO – GIUNTA REGIONALE - DIREZIONE DIFESA DEL SUOLO E DELLA COSTA, SOS LAVORI E SERVIZI TECNICI | C20: 05. AMBIENTE E RISORSE NATURALI | D20: 05.01 RISCHI E ADATTAMENTO CLIMATICO | E20: H62B23002760001 | F20: INTERVENTI DI DIAFRAMMATURA E RINFORZO ARGINALE DEL FIUME PIAVE NEL BASSO CORSO. COMUNI VARI | G20: 9,000,000.00 | H20: 9,000,000.00 | I20: 0 | L20: 1_SEMESTRE_2024 | M20: 1_SEMESTRE_2025 | N20: 1_SEMESTRE_2025 | O20: 1_SEMESTRE_2027 | P20: NA | Q20: NA | R20: NA
A21: FSCRI_RI_486 | B21: REGIONE DEL VENETO – GIUNTA REGIONALE - DIREZIONE DIFESA DEL SUOLO E DELLA COSTA, SOS LAVORI E SERVIZI TECNICI | C21: 05. AMBIENTE E RISORSE NATURALI | D21: 05.01 RISCHI E ADATTAMENTO CLIMATICO | E21: H88H23000300001 | F21: INTERVENTI DI DIAFRAMMATURA E RINFORZO DELLE ARGINATURE DEL FIUME TAGLIAMENTO NEL BASSO CORSO | G21: 23,500,000.00 | H21: 23,500,000.00 | I21: 0 | L21: 1_SEMESTRE_2024 | M21: 1_SEMESTRE_2025 | N21: 1_SEMESTRE_2025 | O21: 1_SEMESTRE_2029 | P21: NA | Q21: NA | R21: NA
A22: FSCRI_RI_487 | B22: CONSORZIO DI BONIFICA VENETO ORIENTALE | C22: 05. AMBIENTE E RISORSE NATURALI | D22: 05.01 RISCHI E ADATTAMENTO CLIMATICO | E22: C98H23000390001 | F22: INTERVENTI DI MANUTENZIONE STRAORDINARIA DEL SISTEMA IDRAULICO FOSSETTA – VELA (STRALCIO FUNZIONALE) | G22: 800,000.00 | H22: 800,000.00 | I22: 0 | N22: 1_SEMESTRE_2025 | O22: 2_SEMESTRE_2026 | P22: NA | Q22: NA | R22: NA
A23: FSCRI_RI_494 | B23: CONSORZIO DI BONIFICA BRENTA – CITTADELLA (PD) | C23: 05. AMBIENTE E RISORSE NATURALI | D23: 05.01 RISCHI E ADATTAMENTO CLIMATICO | E23: J18H23000700002 | F23: SISTEMAZIONE E RICALIBRATURA RIO SETTIMO COMUNI LONGARE, TORRI DI QUARTESOLO E MONTEGALDA - STRALCIO | G23: 800,000.00 | H23: 800,000.00 | I23: 0 | J23: 2_SEMESTRE_2023 | K23: 2_SEMESTRE_2023 | L23: 1_SEMESTRE_2024 | M23: 1_SEMESTRE_2025 | N23: 2_SEMESTRE_2025 | O23: 2_SEMESTRE_2026 | P23: NA | Q23: NA | R23: NA
A24: FSCRI_RI_496 | B24: CONSORZIO DI BONIFICA ADIGE PO DI ROVIGO | C24: 05. AMBIENTE E RISORSE NATURALI | D24: 05.01 RISCHI E ADATTAMENTO CLIMATICO | E24: F18H24000070006 | F24: MESSA IN SICUREZZA/RIORDINO IDRAULICO RETE SECONDARIA TRA ADIGE -BRENTA E CANALBIANCO 1° STRALCIO | G24: 800,000.00 | H24: 800,000.00 | I24: 0 | L24: 1_SEMESTRE_2024 | M24: 1_SEMESTRE_2025 | N24: 2_SEMESTRE_2025 | O24: 1_SEMESTRE_2026 | P24: NA | Q24: NA | R24: NA
A25: FSCRI_RI_497 | B25: CONSORZIO DI BONIFICA DELTA DEL PO | C25: 05. AMBIENTE E RISORSE NATURALI | D25: 05.01 RISCHI E ADATTAMENTO CLIMATICO | E25: J68H23000710001 | F25: ADEGUAMENTO RETE SECONDARIA, MANUFATTI E RIPRESA FRANAMENTI TERRITORIO DEL DELTA DEL PO 1° STRALCIO | G25: 800,000.00 | H25: 800,000.00 | I25: 0 | J25: 2_SEMESTRE_2023 | K25: 2_SEMESTRE_2024 | L25: 1_SEMESTRE_2024 | M25: 1_SEMESTRE_2025 | N25: 2_SEMESTRE_2025 | O25: 2_SEMESTRE_2026 | P25: NA | Q25: NA | R25: NA
A26: FSCRI_RI_498 | B26: CONSORZIO DI BONIFICA VERONESE | C26: 05. AMBIENTE E RISORSE NATURALI | D26: 05.01 RISCHI E ADATTAMENTO CLIMATICO | E26: C87H21000730001 | F26: MESSA IN SICUREZZA FIUME MENAGO NEI COMUNI DI OPPEANO, BOVOLONE E CEREA (VR) - STRALCIO FUNZIONALE | G26: 800,000.00 | H26: 800,000.00 | I26: 0 | N26: 1_SEMESTRE_2025 | O26: 2_SEMESTRE_2026 | P26: NA | Q26: NA | R26: NA
A27: FSCRI_RI_503 | B27: CONSORZIO DI BONIFICA ADIGE EUGANEO | C27: 05. AMBIENTE E RISORSE NATURALI | D27: 05.01 RISCHI E ADATTAMENTO CLIMATICO | E27: B32B23001120002 | F27: LAVORI URGENTI INDIFFERIBILI ADEGUAMENTO IMPIANTI NORMADK5600 E MANUTENZIONE IDROVORE ASSERVITE INMT | G27: 800,000.00 | H27: 800,000.00 | I27: 0 | L27: 2_SEMESTRE_2023 | M27: 1_SEMESTRE_2025 | N27: 2_SEMESTRE_2025 | O27: 2_SEMESTRE_2026 | P27: NA | Q27: NA | R27: NA
A28: FSCRI_RI_504 | B28: CONSORZIO DI BONIFICA PIAVE | C28: 05. AMBIENTE E RISORSE NATURALI | D28: 05.01 RISCHI E ADATTAMENTO CLIMATICO | E28: H58H23000360005 | F28: RIPRISTINO IDRAULICO CORSI ACQUA DEMANIALI, ELETTRIFICAZIONE CHIAVICHE E SGRIGLIATORI 1° STRALCIO | G28: 800,000.00 | H28: 800,000.00 | I28: 0 | L28: 1_SEMESTRE_2024 | M28: 1_SEMESTRE_2025 | N28: 2_SEMESTRE_2025 | O28: 2_SEMESTRE_2026 | P28: NA | Q28: NA | R28: NA
A29: FSCRI_RI_1668 | B29: VENETO ACQUE S.P.A | C29: 05. AMBIENTE E RISORSE NATURALI | D29: 05.02 RISORSE IDRICHE | E29: J12E24000140007 | F29: MO.S.A.V. CONDOTTA DI ADDUZIONE PRIMARIA DN 1000 TRA PIAZZOLA SUL BRENTA (PD) E VICENZA EST | G29: 8,000,000.00 | H29: 3,750,000.00 | I29: 4,250,000.00 | L29: 1_SEMESTRE_2024 | M29: 1_SEMESTRE_2025 | N29: 2_SEMESTRE_2025 | O29: 2_SEMESTRE_2030 | P29: NA | Q29: NA | R29: NA
A30: FSCRI_RI_418 | B30: COMUNI DEL TERRITORIO MONTANO DELLE PROVINCE DI VERONA, VICENZA, TREVISO E BELLUNO. | C30: 05. AMBIENTE E RISORSE NATURALI | D30: 05.05 NATURA E BIODIVERSITÀ | E30: CUP da generare a seguito della selezione dei progetti tramite Bando o riparto a regia regionale | F30: MELKEN. NUOVI METODI DI PREVENZIONE DELLE PREDAZIONI DA LUPO IN MALGA | G30: 1,270,274.00 | H30: 1,000,000.00 | I30: 270,274.00 | J30: 1_SEMESTRE_2024 | K30: 1_SEMESTRE_2024 | L30: 2_SEMESTRE_2024 | M30: 1_SEMESTRE_2025 | N30: 2_SEMESTRE_2025 | O30: 2_SEMESTRE_2031 | P30: NA | Q30: NA | R30: NA
A31: FSCRI_RI_422 | B31: REGIONE DEL VENETO | C31: 05. AMBIENTE E RISORSE NATURALI | D31: 05.05 NATURA E BIODIVERSITÀ | E31: J27D24000000002 | F31: INTERVENTI PER LA VIVIFICAZIONE DEGLI AMBITI LAGUNARI DEL DELTA DEL PO | G31: 14,000,000.00 | H31: 14,000,000.00 | I31: 0 | J31: 2_SEMESTRE_2023 | K31: 2_SEMESTRE_2023 | L31: 2_SEMESTRE_2024 | M31: 1_SEMESTRE_2025 | N31: 2_SEMESTRE_2025 | O31: 2_SEMESTRE_2031 | P31: NA | Q31: NA | R31: NA
A32: FSCRI_RM_1750 | B32: REGIONE DEL VENETO | C32: 05. AMBIENTE E RISORSE NATURALI | D32: 05.05 NATURA E BIODIVERSITÀ | E32: CUP da generare a seguito della selezione dei progetti tramite Bando | F32: MELKEN "PREVENZIONE DELLE PREDAZIONI DA LUPO IN MALGA CON RECINZIONI ELETTRIFICATE: ANALISI DELLE MODIFICHE DEL PASCOLAMENTO, DEL PASCOLO E DEGLI EPISODI DI ATTACCO" - BENEFICIARI: PRIVATI | G32: 1,000,000.00 | H32: 1,000,000.00 | I32: 0 | J32: NA | K32: NA | L32: NA | M32: NA | N32: NA | O32: NA | R32: 2025-06-30
A33: FSCRI_RI_1664 | B33: ENTI LOCALI, ENTI PUBBLICI, FONDAZIONI A PARTECIPAZIONE PUBBLICA. | C33: 06. CULTURA | D33: 06.01 PATRIMONIO E PAESAGGIO | E33: CUP da generare a seguito della selezione dei progetti tramite Bando | F33: BANDO PER IL FINANZIAMENTO DI INTERVENTI DI VALORIZZAZIONE E RECUPERO DI BENI IMMOBILI DI PREGIO | G33: 5,500,000.00 | H33: 2,750,000.00 | I33: 2,750,000.00 | J33: 1_SEMESTRE_2024 | K33: 2_SEMESTRE_2024 | L33: 1_SEMESTRE_2025 | M33: 1_SEMESTRE_2025 | N33: 2_SEMESTRE_2025 | O33: 2_SEMESTRE_2031 | P33: NA | Q33: NA | R33: NA
A34: FSCRI_RM_1746 | B34: REGIONE DEL VENETO | C34: 06. CULTURA | D34: 06.01 PATRIMONIO E PAESAGGIO | E34: CUP da generare a seguito della selezione dei progetti tramite Bando | F34: INTERVENTI DI VALORIZZAZIONE E RECUPERO DI BENI IMMOBILI DI PREGIO, DI CUI SI ASSICURI LA SOSTENIBILITÀ GESTIONALE, MIRATI A PROMUOVERE LO SVILUPPO SOSTENIBILE ANCHE DA UN PUNTO DI VISTA DELL'EFFICIENZA ENERGETICA - BENEFICIARI:PARROCCHIE ED ENTI ECCLESIASTICI | G34: 1,000,000.00 | H34: 1,000,000.00 | I34: 0 | J34: NA | K34: NA | L34: NA | M34: NA | N34: NA | O34: NA | R34: 2025-06-30
A35: FSCRI_RI_1584 | B35: REGIONE DEL VENETO / VENETO STRADE S.P.A. | C35: 07. TRASPORTI E MOBILITÀ | D35: 07.01 TRASPORTO STRADALE | E35: D71B24000010001 | F35: CICLOVIA NAZIONALE "ADRIATICA" – 4° LOTTO | G35: 2,500,000.00 | H35: 2,500,000.00 | I35: 0 | L35: 2_SEMESTRE_2024 | M35: 1_SEMESTRE_2025 | N35: 2_SEMESTRE_2025 | O35: 2_SEMESTRE_2027 | P35: NA | Q35: NA | R35: NA
A36: FSCRI_RI_1588 | B36: SOGGETTO BENEFICIARIO COORDINATORE TERRITORIALE: REGIONE DEL VENETO / SOGGETTO ATTUATORE: VENETO STRADE S.P.A. | C36: 07. TRASPORTI E MOBILITÀ | D36: 07.01 TRASPORTO STRADALE | E36: D31B24000020001 | F36: CICLOVIA NAZIONALE "VENTO" – 4° LOTTO FUNZIONALE | G36: 2,500,000.00 | H36: 2,500,000.00 | I36: 0 | L36: 1_SEMESTRE_2024 | M36: 1_SEMESTRE_2025 | N36: 2_SEMESTRE_2025 | O36: 1_SEMESTRE_2027 | P36: NA | Q36: NA | R36: NA
A37: FSCRI_RI_1685 | B37: SOGGETTO BENEFICIARIO COORDINATORE TERRITORIALE: REGIONE DEL VENETO / SOGGETTO ATTUATORE: VENETO STRADE S.P.A. | C37: 07. TRASPORTI E MOBILITÀ | D37: 07.01 TRASPORTO STRADALE | E37: D21B24000000001 | F37: Variante alla S.R. 10 "Padana Inferiore" tra Cerea (VR) e Sanguinetto (VR) 1° Stralcio | G37: 85,000,000.00 | H37: 20,000,000.00 | I37: 65,000,000.00 | L37: 1_SEMESTRE_2023 | M37: 1_SEMESTRE_2025 | N37: 2_SEMESTRE_2025 | O37: 2_SEMESTRE_2029 | P37: NA | Q37: NA | R37: NA
A38: FSCRI_RI_425 | B38: SOGGETTO BENEFICIARIO COORDINATORE TERRITORIALE: REGIONE DEL VENETO -SOGGETTO ATTUATORE: VENETO STRADE S.P.A. | C38: 07. TRASPORTI E MOBILITÀ | D38: 07.01 TRASPORTO STRADALE | E38: D81B24000000001 | F38: CICLOVIA NAZIONALE "DEL GARDA" TRATTO VENETO - 5° LOTTO 1° STRALCIO | G38: 6,500,000.00 | H38: 6,500,000.00 | I38: 0 | L38: 1_SEMESTRE_2023 | M38: 1_SEMESTRE_2025 | N38: 2_SEMESTRE_2025 | O38: 2_SEMESTRE_2028 | P38: NA | Q38: NA | R38: NA
A39: FSCRI_RI_431 | B39: SOGGETTO BENEFICIARIO COORDINATORE TERRITORIALE: REGIONE DEL VENETO - DIREZIONE INFRASTRUTTURE E TRASPORTI SOGGETTO ATTUATORE: VENETO STRADE S.P.A. | C39: 07. TRASPORTI E MOBILITÀ | D39: 07.01 TRASPORTO STRADALE | E39: D71B21005180002 | F39: PISTA CICLABILE TREVISO – OSTIGLIA - TRATTO TRA GRISIGNANO DI ZOCCO (VI) E CASALEONE (VR) - LOTTO 3 | G39: 7,394,041.84 | H39: 1,773,000.00 | I39: 5,621,041.84 | N39: 2_SEMESTRE_2023 | O39: 1_SEMESTRE_2025 | P39: NA | Q39: NA | R39: NA
A40: FSCRI_RI_436 | B40: REGIONE DEL VENETO / VENETO STRADE S.P.A. | C40: 07. TRASPORTI E MOBILITÀ | D40: 07.01 TRASPORTO STRADALE | E40: D71B24000060001 | F40: CICLOVIA NAZIONALE "DEL GARDA" TRATTO VENETO - 5° LOTTO 2° STRALCIO | G40: 5,568,037.48 | H40: 5,568,037.48 | I40: 0 | L40: 1_SEMESTRE_2023 | M40: 1_SEMESTRE_2025 | N40: 2_SEMESTRE_2025 | O40: 2_SEMESTRE_2028 | P40: NA | Q40: NA | R40: NA
A41: FSCRI_RI_458 | B41: SOGGETTO BENEFICIARIO REGIONE DEL VENETO SOGGETTO ATTUATORE VENETO STRADE S.P.A. | C41: 07. TRASPORTI E MOBILITÀ | D41: 07.01 TRASPORTO STRADALE | E41: D21B19000600002 | F41: PISTA CICLABILE TREVISO OSTIGLIA NEL TRATTO TRA GRISIGNANO DI ZOCCO (VI) E CASALEONE (VR) – LOTTO 2 | G41: 3,019,590.68 | H41: 320,000.00 | I41: 2,699,590.68 | N41: 2_SEMESTRE_2023 | O41: 1_SEMESTRE_2025 | P41: NA | Q41: NA | R41: NA
A42: FSCRI_RI_459 | B42: SOGGETTO BENEFICIARIO REGIONE DEL VENETO SOGGETTO ATTUATORE VENETO STRADE S.P.A. | C42: 07. TRASPORTI E MOBILITÀ | D42: 07.01 TRASPORTO STRADALE | E42: H31B18000550001 | F42: PISTA CICLABILE TREVISO OSTIGLIA NEL TRATTO TRA GRISIGNANO DI ZOCCO (VI) E CASALEONE (VR) – LOTTO 1 | G42: 2,023,000.00 | H42: 223,000.00 | I42: 1,800,000.00 | N42: 2_SEMESTRE_2023 | O42: 1_SEMESTRE_2025 | P42: NA | Q42: NA | R42: NA
A43: FSCRI_RI_489 | B43: SOGGETTO BENEFICIARIO REGIONE DEL VENETO, SOGGETTO ATTUATORE VENETO STRADE SPA | C43: 07. TRASPORTI E MOBILITÀ | D43: 07.01 TRASPORTO STRADALE | E43: D41B21002320005 | F43: CPASS/3–INT.31 TERRAGLIO EST OPERE 2 STR.-COMPLETAMENTO DA VIA DELL'INDUSTRIE-CASIER A SR53 POSTUMIA | G43: 38,208,059.70 | H43: 36,000,000.00 | I43: 2,208,059.70 | L43: 1_SEMESTRE_2024 | M43: 1_SEMESTRE_2025 | N43: 2_SEMESTRE_2025 | O43: 2_SEMESTRE_2028 | P43: NA | Q43: NA | R43: NA
A44: FSCRI_RI_524 | B44: SOGGETTO BENEFICIARIO REGIONE DEL VENETO - SOGGETTO ATTUATORE VENETO STRADE SPA | C44: 07. TRASPORTI E MOBILITÀ | D44: 07.01 TRASPORTO STRADALE | E44: D71B22001250002 | F44: PISTA CICLABILE TREVISO OSTIGLIA NEL TRATTO TRA GRISIGNANO DI ZOCCO (VI) E CASALEONE (VR) – LOTTO 7 | G44: 6,684,000.00 | H44: 684,000.00 | I44: 6,000,000.00 | N44: 2_SEMESTRE_2023 | O44: 2_SEMESTRE_2025 | P44: NA | Q44: NA | R44: NA
A45: FSCRI_RI_429 | B45: SOGGETTO BENEFICIARIO REGIONE DEL VENETO - SOGGETTO ATTUATORE INFRASTRUTTURE VENETE SRL | C45: 07. TRASPORTI E MOBILITÀ | D45: 07.02 TRASPORTO FERROVIARIO | E45: I95B23000390001 | F45: LINEA ADRIA-MESTRE - REALIZZAZIONE INDIPENDENZE DELLE STAZIONI CAVARZERE, CONA, CAMPAGNA LUPIA, MIRA | G45: 2,200,000.00 | H45: 2,200,000.00 | I45: 0 | L45: 2_SEMESTRE_2024 | M45: 1_SEMESTRE_2025 | N45: 2_SEMESTRE_2025 | O45: 1_SEMESTRE_2026 | P45: NA | Q45: NA | R45: NA
A46: FSCRI_RI_433 | B46: SOGGETTO BENEFICIARIO: REGIONE DEL VENETO - SOGGETTO ATTUATORE: INFRASTRUTTURE VENETE SRL | C46: 07. TRASPORTI E MOBILITÀ | D46: 07.02 TRASPORTO FERROVIARIO | E46: I61J20000090002 | F46: LINEA ADRIA–MESTRE - SOPPRESSIONE DEI P.L. NEI COMUNI MIRA E DOLO E NUOVA CICLOPEDONALE COMUNE MIRA | G46: 2,775,200.00 | H46: 1,250,000.00 | I46: 1,525,200.00 | L46: 2_SEMESTRE_2023 | M46: 1_SEMESTRE_2024 | N46: 2_SEMESTRE_2024 | O46: 2_SEMESTRE_2026 | P46: NA | Q46: NA | R46: NA
A47: FSCRI_RI_437 | B47: SOGGETTO BENEFICIARIO REGIONE VENETO - SOGGETTO ATTUATORE INFRASTRUTTURE VENETE SRL | C47: 07. TRASPORTI E MOBILITÀ | D47: 07.02 TRASPORTO FERROVIARIO | E47: I35B23000440001 | F47: LINEA ADRIA–MESTRE - MANUTENZIONE STRAORDINARIA OPERE D’ARTE (APPOGGI PONTI METALLICI-PONTE SERIOLA) | G47: 1,000,000.00 | H47: 1,000,000.00 | I47: 0 | L47: 1_SEMESTRE_2024 | M47: 1_SEMESTRE_2024 | N47: 2_SEMESTRE 2024 | O47: 2_SEMESTRE_2027 | P47: NA | Q47: NA | R47: NA
A48: FSCRI_RI_438 | B48: SOGGETTO BENEFICIARIO COORDINATORE TERRITORIALE: REGIONE DEL VENETO / SOGGETTO ATTUATORE: INFRASTRUTTURE VENETE SRL. | C48: 07. TRASPORTI E MOBILITÀ | D48: 07.02 TRASPORTO FERROVIARIO | E48: I58E23000330001 | F48: LINEA ADRIA - MESTRE. RISTRUTTURAZIONE EDIFICIO CANTONIERI PIOVE DI SACCO | G48: 750,000.00 | H48: 750,000.00 | I48: 0 | L48: 2_SEMESTRE_2024 | M48: 1_SEMESTRE_2025 | N48: 2_SEMESTRE_2025 | O48: 1_SEMESTRE_2027 | P48: NA | Q48: NA | R48: NA
A49: FSCRI_RI_440 | B49: SOGGETTO BENEFICIARIO REGIONE DEL VENETO, SOGGETTO ATTUATORE INFRASTRUTTURE VENETE SRL | C49: 07. TRASPORTI E MOBILITÀ | D49: 07.02 TRASPORTO FERROVIARIO | E49: I56C23000080001 | F49: LINEA ADRIA–MESTRE -SOSTITUZIONE BLOCCO CONTA ASSI (DA BCA1 A BCA2) PER LA TRATTA PIOVE DI S.-MESTRE | G49: 500,000.00 | H49: 500,000.00 | I49: 0 | L49: 2_SEMESTRE_2024 | M49: 1_SEMESTRE_2025 | N49: 2_SEMESTRE_2025 | O49: 2_SEMESTRE_2026 | P49: NA | Q49: NA | R49: NA
A50: FSCRI_RI_441 | B50: SOGGETTO BENEFICIARIO REGIONE DEL VENETO - SOGGETTO ATTUATORE INFRASTRUTTURE VENETE SRL | C50: 07. TRASPORTI E MOBILITÀ | D50: 07.02 TRASPORTO FERROVIARIO | E50: I51G23000110001 | F50: LINEA ADRIA-MESTRE -SOTTOPASSO PIOVE DI SACCO-II STRALCIO (FORNITURA ASCENSORI E OPERE DI FINITURA) | G50: 350,000.00 | H50: 350,000.00 | I50: 0 | L50: 2_SEMESTRE_2023 | M50: 2_SEMESTRE_2023 | N50: 1_SEMESTRE_2025 | O50: 2_SEMESTRE_2025 | P50: NA | Q50: NA | R50: NA
A51: FSCRI_RI_442 | B51: SOGGETTO BENEFICIARIO REGIONE DEL VENETO, SOGGETTO ATTUATORE INFRASTRUTTURE VENETE SRL | C51: 07. TRASPORTI E MOBILITÀ | D51: 07.02 TRASPORTO FERROVIARIO | E51: I57D23000020002 | F51: LINEA ADRIA-MESTRE - INTERVENTO DI SISTEMAZIONE PIAZZALE CARBURANTI PRESSO OFFICINA | G51: 645,798.00 | H51: 350,000.00 | I51: 295,798.00 | L51: 1_SEMESTRE_2024 | M51: 1_SEMESTRE_2024 | N51: 2_SEMESTRE_2024 | O51: 2_SEMESTRE_2025 | P51: NA | Q51: NA | R51: NA
A52: FSCRI_RI_443 | B52: SOGGETTO BENEFICIARIO REGIONE DEL VENETO, SOGGETTO ATTUATORE INFRASTRUTTURE VENETE SRL | C52: 07. TRASPORTI E MOBILITÀ | D52: 07.02 TRASPORTO FERROVIARIO | E52: I56C23000060001 | F52: LINEA ADRIA–MESTRE-REALIZZAZIONE SISTEMA SEGNALAMENTO STAZ.PIOVE DI SACCO.FASCIO BINARI DI MOVIMENT. | G52: 600,000.00 | H52: 600,000.00 | I52: 0 | L52: 2_SEMESTRE_2024 | M52: 2_SEMESTRE 2024 | N52: 1_SEMESTRE_2025 | O52: 2_SEMESTRE_2026 | P52: NA | Q52: NA | R52: NA
A53: FSCRI_RI_444 | B53: SOGGETTO BENEFICIARIO COORDINATORE TERRITORIALE: REGIONE DEL VENETO / SOGGETTO ATTUATORE: INFRASTRUTTURE VENETE SRL. | C53: 07. TRASPORTI E MOBILITÀ | D53: 07.02 TRASPORTO FERROVIARIO | E53: I37D23000070001 | F53: LINEA ADRIA - MESTRE. INTERVENTI DI RISOLUZIONE PUNTI CRITICI RISCHIO IDROGEOLOGICO | G53: 1,000,000.00 | H53: 1,000,000.00 | I53: 0 | L53: 2_SEMESTRE_2024 | M53: 1_SEMESTRE_2025 | N53: 2_SEMESTRE_2025 | O53: 1_SEMESTRE_2028 | P53: NA | Q53: NA | R53: NA
A54: FSCRI_RI_445 | B54: SOGGETTO BENEFICIARIO REGIONE DEL VENETO - SOGGETTO ATTUATORE INFRASTRUTTURE VENETE SRL | C54: 07. TRASPORTI E MOBILITÀ | D54: 07.02 TRASPORTO FERROVIARIO | E54: I13I23000150001 | F54: LINEA ADRIA-MESTRE - ADEGUAMENTO STAZIONI E FERMATE PER PERSONALE RIDOTTA MOBILITÀ - I LOTTO | G54: 2,000,000.00 | H54: 2,000,000.00 | I54: 0 | L54: 2_SEMESTRE_2024 | M54: 1_SEMESTRE_2025 | N54: 2_SEMESTRE_2025 | O54: 1_SEMESTRE_2028 | P54: NA | Q54: NA | R54: NA
A55: FSCRI_RI_508 | B55: SOGGETTO BENEFICIARIO COORDINATORE TERRITORIALE: REGIONE DEL VENETO - SOGGETTO ATTUATORE: GESTORE DI IMPIANTI DI RISALITA | C55: 07. TRASPORTI E MOBILITÀ | D55: 07.02 TRASPORTO FERROVIARIO | E55: CUP da generare a seguito della selezione dei progetti tramite Bando o riparto a regia regionale | F55: REALIZZAZIONE BACINI IDRICI AI FINI DI INNEVAMENTO | G55: 4,000,000.00 | H55: 2,000,000.00 | I55: 2,000,000.00 | J55: 1_SEMESTRE_2024 | K55: 2_SEMESTRE_2024 | L55: 1_SEMESTRE_2025 | M55: 2_SEMESTRE_2025 | N55: 1_SEMESTRE_2026 | O55: 2_SEMESTRE_2029 | P55: NA | Q55: NA | R55: NA
A56: FSCRI_RI_509 | B56: SOGGETTO BENEFICIARIO E COORDINATORE TERRITORIALE: REGIONE DEL VENETO - SOGGETTO ATTUATORE: GESTORE IMPIANTI RISALITA | C56: 07. TRASPORTI E MOBILITÀ | D56: 07.02 TRASPORTO FERROVIARIO | E56: H62D24000010008 | F56: COLLEGAMENTO SKI AREA DEL CIVETTA CON SKI AREA 5 TORRI – 1° STRALCIO | G56: 22,692,000.00 | H56: 14,000,000.00 | I56: 8,692,000.00 | J56: 1_SEMESTRE_2024 | K56: 2_SEMESTRE_2024 | L56: 1_SEMESTRE_2025 | M56: 2_SEMESTRE_2025 | N56: 1_SEMESTRE_2026 | O56: 2_SEMESTRE_2029 | P56: NA | Q56: NA | R56: NA
A57: FSCRI_RI_510 | B57: SOGGETTO BENEFICIARIO COORDINATORE TERRITORIALE: REGIONE DEL VENETO -SOGGETTO ATTUATORE: GESTORE DI IMPIANTI DI RISALITA | C57: 07. TRASPORTI E MOBILITÀ | D57: 07.02 TRASPORTO FERROVIARIO | E57: H62D24000020001 | F57: COLLEGAMENTO SKI AREA DEL CIVETTA CON SKI AREA 5 TORRI – 2° STRALCIO | G57: 17,500,000.00 | H57: 17,500,000.00 | I57: 0 | J57: 1_SEMESTRE_2024 | K57: 2_SEMESTRE_2024 | L57: 1_SEMESTRE_2025 | M57: 2_SEMESTRE_2025 | N57: 1_SEMESTRE_2026 | O57: 2_SEMESTRE_2029 | P57: NA | Q57: NA | R57: NA
A58: FSCRI_RI_1596 | B58: REGIONE DEL VENETO | C58: 07. TRASPORTI E MOBILITÀ | D58: 07.05 MOBILITÀ URBANA | E58: CUP da generare a seguito della selezione dei progetti tramite Bando o riparto a regia regionale | F58: PIANO REGIONALE DELLA MOBILITÀ CICLISTICA | G58: 12,500,000.00 | H58: 12,500,000.00 | I58: 0 | J58: 1_SEMESTRE_2024 | K58: 2_SEMESTRE_2024 | L58: 1_SEMESTRE_2026 | M58: 2_SEMESTRE_2026 | N58: 1_SEMESTRE_2027 | O58: 2_SEMESTRE_2029 | P58: NA | Q58: NA | R58: NA
A59: FSCRI_RI_488 | B59: SOGGETTO BENEFICIARIO COORDINATORE TERRITORIALE: REGIONE DEL VENETO -SOGGETTO ATTUATORE: ENTI AFFIDANTI/AZIENDE AFFIDATARIE SERVIZI DI TPL | C59: 07. TRASPORTI E MOBILITÀ | D59: 07.05 MOBILITÀ URBANA | E59: CUP da generare a seguito della selezione dei progetti tramite Bando o riparto a regia regionale | F59: ACQUISTO MEZZI SU GOMMA PER IL TRASPORTO PUBBLICO LOCALE (TPL) | G59: 19,431,962.52 | H59: 19,431,962.52 | I59: 0 | J59: 1_SEMESTRE_2024 | K59: 2_SEMESTRE_2024 | L59: 1_SEMESTRE_2025 | M59: 1_SEMESTRE_2025 | N59: 2_SEMESTRE_2025 | O59: 2_SEMESTRE_2028 | P59: NA | Q59: NA | R59: NA
A60: FSCRI_RI_447 | B60: COMUNI ED AZIENDE TERRITORIALI PER L’EDILIZIA RESIDENZIALE DEL VENETO. | C60: 08. RIQUALIFICAZIONE URBANA | D60: 08.01 EDILIZIA E SPAZI PUBBLICI | E60: CUP da generare a seguito della selezione dei progetti tramite Bando | F60: INTERVENTI DI MANUTENZIONE STRAORDINARIA ED EFFICIENTAMENTO ENERGETICO DI ALLOGGI E.R.P. | G60: 14,000,000.00 | H60: 14,000,000.00 | I60: 0 | J60: 1_SEMESTRE_2023 | K60: 1_SEMESTRE_2024 | L60: 2_SEMESTRE_2025 | M60: 2_SEMESTRE_2025 | N60: 1_SEMESTRE_2026 | O60: 2_SEMESTRE_2029 | P60: NA | Q60: NA | R60: NA
A61: FSCRI_RI_460 | B61: REGIONE DEL VENETO / DIREZIONE GESTIONE DEL PATRIMONIO IN COLLABORAZIONE CON I SERVIZI AFFARI GENERALI DEL CONSIGLIO REGIONALE VENETO | C61: 08. RIQUALIFICAZIONE URBANA | D61: 08.01 EDILIZIA E SPAZI PUBBLICI | E61: H77D23000080003 | F61: RISTRUTTURAZIONE SEDE REGIONALE DI CALLE DUE PORTONI NEL COMPENDIO DI VILLA SETTEMBRINI A MESTRE | G61: 3,500,000.00 | H61: 2,000,000.00 | I61: 1,500,000.00 | J61: 1_SEMESTRE_2024 | K61: 1_SEMESTRE_2024 | L61: 1_SEMESTRE_2025 | M61: 2_SEMESTRE_2025 | N61: 1_SEMESTRE_2026 | O61: 2_SEMESTRE_2027 | P61: NA | Q61: NA | R61: NA
A62: FSCRI_RI_461 | B62: REGIONE DEL VENETO / U.O. GENIO CIVILE ROVIGO | C62: 08. RIQUALIFICAZIONE URBANA | D62: 08.01 EDILIZIA E SPAZI PUBBLICI | E62: H18H24000030001 | F62: RISANAMENTO CONSERVATIVO DELL’EX GENIO CIVILE DI ROVIGO | G62: 4,000,000.00 | H62: 4,000,000.00 | I62: 0 | J62: 2_SEMESTRE_2023 | K62: 2_SEMESTRE_2023 | L62: 1_SEMESTRE_2025 | M62: 2_SEMESTRE_2025 | N62: 1_SEMESTRE_2026 | O62: 2_SEMESTRE_2027 | P62: NA | Q62: NA | R62: NA
A63: FSCRI_RI_463 | B63: REGIONE DEL VENETO / DIREZIONE GESTIONE DEL PATRIMONIO | C63: 08. RIQUALIFICAZIONE URBANA | D63: 08.01 EDILIZIA E SPAZI PUBBLICI | E63: H49D23000100001 | F63: MESSA IN SICUREZZA, CONSERVAZIONE E VALORIZZAZIONE DELL’EDIFICIO “CASA SALOTTO” - ROCCA DI MONSELICE | G63: 2,000,000.00 | H63: 2,000,000.00 | I63: 0 | J63: 1_SEMESTRE_2024 | K63: 1_SEMESTRE_2024 | L63: 1_SEMESTRE_2025 | M63: 2_SEMESTRE_2025 | N63: 1_SEMESTRE_2026 | O63: 2_SEMESTRE_2028 | P63: NA | Q63: NA | R63: NA
A64: FSCRI_RI_1619 | B64: COMUNI DEL VENETO | C64: 10. SOCIALE E SALUTE | D64: 10.01 STRUTTURE SOCIALI | E64: CUP da generare a seguito della selezione dei progetti tramite Bando | F64: ADEGUAMENTO NORMATIVO, MIGLIORAMENTO E RISTRUTTURAZIONE DI IMPIANTI SPORTIVI DI ENTI LOCALI-INTEGRAZ | G64: 1,000,000.00 | H64: 1,000,000.00 | I64: 0 | J64: 1_SEMESTRE_2024 | K64: 2_SEMESTRE_2024 | L64: 1_SEMESTRE_2025 | M64: 2_SEMESTRE_2025 | N64: 1_SEMESTRE_2026 | O64: 2_SEMESTRE_2029 | P64: NA | Q64: NA | R64: NA
A65: FSCRI_RI_454 | B65: COMUNI DEL VENETO | C65: 10. SOCIALE E SALUTE | D65: 10.01 STRUTTURE SOCIALI | E65: CUP da generare a seguito della selezione dei progetti tramite Bando | F65: ADEGUAMENTO NORMATIVO, MIGLIORAMENTO E RISTRUTTURAZIONE DI IMPIANTI SPORTIVI DI ENTI LOCALI | G65: 10,000,000.00 | H65: 10,000,000.00 | I65: 0 | J65: 1_SEMESTRE_2024 | K65: 2_SEMESTRE_2024 | L65: 1_SEMESTRE_2025 | M65: 2_SEMESTRE_2025 | N65: 1_SEMESTRE_2026 | O65: 2_SEMESTRE_2029 | P65: NA | Q65: NA | R65: NA
A66: FSCRI_RI_525 | B66: SOGGETTO PUBBLICO DA INDIVIDUARE / BANDO AD EVIDENZA PUBBLICA | C66: 10. SOCIALE E SALUTE | D66: 10.02 STRUTTURE E ATTREZZATURE SANITARIE | E66: CUP da generare a seguito della selezione dei progetti tramite Bando | F66: PROGETTO INNOVATIVO PER LA RIABILITAZIONE | G66: 13,000,000.00 | H66: 12,000,000.00 | I66: 1,000,000.00 | L66: 2_SEMESTRE_2023 | M66: 1_SEMESTRE_2025 | N66: 2_SEMESTRE_2025 | O66: 2_SEMESTRE_2028 | P66: NA | Q66: NA | R66: NA
A67: FSCRI_RI_415 | B67: AZIENDA ULSS N. 2 “MARCA TREVIGIANA | C67: 10. SOCIALE E SALUTE | D67: 10.03 SERVIZI SOCIO-ASSISTENZIALI | E67: I65F23000490002 | F67: REALIZZAZIONE DI UN NUOVO POLO PER PERSONE CON DISABILITÀ IN COMUNE DI MOGLIANO VENETO (TV) | G67: 10,000,000.00 | H67: 3,000,000.00 | I67: 7,000,000.00 | L67: 2_SEMESTRE_2023 | M67: 1_SEMESTRE_2025 | N67: 2_SEMESTRE_2025 | O67: 2_SEMESTRE_2027 | P67: NA | Q67: NA | R67: NA
A68: FSCRI_RI_379 | B68: ESU - AZIENDE REGIONALI PER IL DIRITTO ALLO STUDIO UNIVERSITARIO DI PADOVA, DI VENEZIA E DI VERONA | C68: 11. ISTRUZIONE E FORMAZIONE | D68: 11.02 EDUCAZIONE E FORMAZIONE | E68: CUP da generare a seguito della selezione dei progetti tramite Bando | F68: OFFERTA DI SERVIZI ABITATIVI E DI RISTORAZIONE PER GLI STUDENTI UNIVERSITARI - BANDO | G68: 10,000,000.00 | H68: 10,000,000.00 | I68: 0 | J68: 2_SEMESTRE_2023 | K68: 1_SEMESTRE_2024 | L68: 1_SEMESTRE_2025 | M68: 2_SEMESTRE_2025 | N68: 2_SEMESTRE_2025 | O68: 2_SEMESTRE_2027 | P68: NA | Q68: NA | R68: NA
A69: FSCRI_RI_1615 | B69: REGIONE DEL VENETO | C69: 12. CAPACITÀ AMMINISTRATIVA | D69: 12.02 ASSISTENZA TECNICA | E69: CUP da generare a seguito della selezione dei progetti | F69: ASSISTENZA TECNICA ALL'ACCORDO PER LA COESIONE FSC 2021-2027 | G69: 15,372,385.77 | H69: 15,372,385.77 | I69: 0 | J69: 1_SEMESTRE_2024 | K69: 1_SEMESTRE_2024 | L69: 2_SEMESTRE_2024 | M69: 2_SEMESTRE_2024 | N69: 1_SEMESTRE_2025 | O69: 2_SEMESTRE_2031 | P69: NA | Q69: NA | R69: NA
G70: =SUM(G4:G69) -> 536,970,109.89 | H70: =SUM(H4:H69) -> 400,872,385.77 | I70: =SUM(I4:I69) -> 136,097,724.12

Sheet Allegato A2 Anticipazioni
A3: AREATEMATICA | B3: LINEA DI INTERVENTO | C3: CUP | D3: TITOLO | E3: IMPORTO FSC 21-27
A4: 01. RICERCA E INNOVAZIONE | B4: RICERCA E SVILUPPO | C4: PRATT30168_VEN | D4: Sostegno a progetti di ricerca industriale e sviluppo sperimentale (Rif. Scheda 104 PRRR) | E4: 4,000,000.00 €
A5: 02. DIGITALIZZAZIONE | B5: CONNETTIVITÀ DIGITALE | C5: H79J18000310002 | D5: Potenziamento ed ampliamento delle reti radio regionali dei servizi di pubblica utilità (SUEM 118, Protezione civile, AIB e Polizia Locale) | E5: 4,097,232.72 €
A6: 05. AMBIENTE E RISORSE NATURALI | B6: RISCHI E ADATTAMENTO CLIMATICO | C6: H47H21000360002 | D6: Lavori di sistemazione idraulica del torrente Muson a valle della confluenza con il torrente Lastego in comune di Riese Pio X (TV) | E6: 1,000,000.00 €
A7: 05. AMBIENTE E RISORSE NATURALI | B7: RISORSE IDRICHE | C7: J66H20000000007 | D7: Condotta DN1000 Brendola (VI) – Vicenza Ovest. Tratta A7-A6 | E7: 10,685,000.00 €
A8: 05. AMBIENTE E RISORSE NATURALI | B8: RISORSE IDRICHE | C8: J36H20000030005 | D8: Condotta di adduzione primaria Piazzola sul Brenta – Brendola. Stralcio condotta DN1000 Vicenza Ovest – Vicenza Est - Tratta A6-A4 | E8: 15,000,000.00 €
A9: 05. AMBIENTE E RISORSE NATURALI | B9: RISORSE IDRICHE | C9: F96H19000070002 | D9: Interventi di trasformazione irrigua del bacino Trezze in destra del canale Nuovissimo nei Comuni di Chioggia (VE) e Codevigo (PD) - 2° stralcio A - | E9: 3,000,000.00 €
A10: 07. TRASPORTI E MOBILITA' | B10: TRASPORTO FERROVIARIO | C10: G91I19000010003 | D10: Elettrificazione della tratta ferroviaria Adria Mestre fra le stazioni di Adria e Mira Buse | E10: 11,250,000.00 €
A11: 07. TRASPORTI E MOBILITA' | B11: LOGISTICA | C11: H52D21000010008 | D11: PADON MARMOLADA - NUOVO IMPIANTO DI ARROCCAMENTO ALLA SKI AREA "MARMOLADA" CABINOVIA 10 POSTI "MALGA CIAPELA - CAPANNA BILL"*XXX*COSTRUZIONE NUOVO IMPIANTO DI ARROCCAMENTO ALLA SKI AREA "MARMOLADA" CABINOVIA 10 POSTI "MALGA CIAPELA - CAPANNA BILL | E11: 4,000,000.00 €
A12: 07. TRASPORTI E MOBILITA' | B12: LOGISTICA | C12: H92D21000010008 | D12: FUNIVIE ARABBA - REALIZZAZIONE DI UNA NUOVA CABINOVIA MONOFUNE AD AMMORSAMENTO AUTOMATICO ARABBA - PESCOI IN SOSTITUZIONE DELL'IMPIANTO ESISTENTE SEM124 ARABBA - FORCELLA EUROPA NEL COMUNE DI LIVINALLONGO DEL COL DI LANA | E12: 4,000,000.00 €
A13: 07. TRASPORTI E MOBILITA' | B13: LOGISTICA | C13: H92D21000030008 | D13: ANTERCREP - REALIZZAZIONE DI UNA NUOVA SEGGIOVIA ESAPOSTO AD AMMORSAMENTO AUTOMATICO PIANI ALTI DI ORNELLA - SEM102 PASSO PADON IN SOSTITUZIONE ALL'IMPIANTO ESISTENTE PIANI ALTI DI ORNELLA - PASSO PADON NEL COMUNE DI LIVINALLONGO DEL COL DI LANA | E13: 3,725,000.00 €
A14: 07. TRASPORTI E MOBILITA' | B14: LOGISTICA | C14: H29B21000010007 | D14: MALCESINE - INTERVENTI DI AMMODERNAMENTO TECNOLOGICO NELL'AMBITO DELLA REVISIONE GENERALE DELLA CABINOVIA M.1.12B SAN MICHELE-MONTE BALDO ( 2 TRONCO) | E14: 275,000.00 €
A15: 08. RIQUALIFICAZIONE URBANA | B15: EDILIZIA E SPAZI PUBBLICI | C15: H49J21003900007 | D15: Riqualificazione di contesti urbani degradati con recupero e razionalizzazione di alloggi sfitti di Edilizia Residenziale Pubblica. | E15: 1,800,000.00 €
A16: 08. RIQUALIFICAZIONE URBANA | B16: EDILIZIA E SPAZI PUBBLICI | C16: J43I19000090007 | D16: Programma complesso per riqualificazione di contesti urbani degradati con demolizione, recupero di alloggi sfitti e realizzazione di nuovi alloggi di Edilizia Residenziale Pubblica. | E16: 1,200,000.00 €
A17: 10. SOCIALE E SALUTE | B17: STRUTTURE SOCIALI | C17: G89J19000180006 | D17: Progetto di ristrutturazione e ampliamento edilizio del Centro Servizi per persone anziane non autosufficienti “Residenza San Salvatore” in Comune di Ficarolo (RO) | E17: 1,167,767.28 €
A18: 11. ISTRUZIONE E FORMAZIONE | B18: EDUCAZIONE E FORMAZIONE | C18: PRATT30167_VEN | D18: VET Digital innovation - Bando | E18: 4,000,000.00 €
A19: Totale | E19: =SUM(E4:E18) -> 69,200,000.00 €

Sheet Allegato B1 Piano finanziario
B2: 2023 | C2: 2024 | D2: 2025 | E2: 2026 | F2: 2027 | G2: 2028 | H2: 2029 | I2: 2030 | J2: 2031 | K2: TOTALE
A3: Assegnazione ordinaria FSC 21-27 | B3: 0 | C3: 0 | D3: =48738068.67+3477565.14 -> 52,215,633.81 | E3: 114,206,482.95 | F3: 93,475,125.30 | G3: 77,374,013.56 | H3: 51,356,784.92 | I3: 6,930,959.46 | J3: 5,313,385.77 | K3: =SUM(B3:J3) -> 400,872,385.77

Sheet Allegato B2 Aggiornamento crono
A3: ID | B3: AMMINISTRAZIONE | C3: AREATEMATICA | D3: LINEA DI INTERVENTO | E3: CUP | F3: TITOLO | G3: COSTO TOTALE | H3: IMPORTO RICHIESTO FSC 21-27 | I3: COFINANZIAMENTO CON ALTRE RISORSE | J3: 2023 | K3: 2024 | L3: 2025 | M3: 2026 | N3: 2027 | O3: 2028 | P3: 2029 | Q3: 2030 | R3: 2031 | S3: 2032 | T3: 2033 | U3: 2034 | V3: 2035
A4: FSCRI_RI_408 | B4: REGIONE DEL VENETO - DIREZIONE ICT, AGENDA DIGITALE E SOS AFFIDAMENTO SERVIZI E FORNITURE ICT | C4: 02. DIGITALIZZAZIONE | D4: 02.01 TECNOLOGIE E SERVIZI DIGITALI | E4: H17H23002790001 | F4: EVOLUZIONE PIATTAFORMA LIZARD | G4: 2,000,000.00 | H4: 2,000,000.00 | I4: 0 | L4: =800000+400000 -> 1,200,000.00 | M4: 800,000.00
A5: FSCRI_RI_536 | B5: REGIONE DEL VENETO | C5: 02. DIGITALIZZAZIONE | D5: 02.01 TECNOLOGIE E SERVIZI DIGITALI | E5: H59B23000130001 | F5: PRODUZIONE DATI GEOTOPOGRAFICI PER INFRASTRUTTURA DATI TERRITORIALI DELLA REGIONE DEL VENETO IDT-RV | G5: 500,000.00 | H5: 500,000.00 | I5: 0 | J5: 0 | K5: 0 | L5: 300,000.00 | M5: 200,000.00
A6: FSCRI_RM_1740 | B6: REGIONE DEL VENETO | C6: 03. COMPETITIVITA' IMPRESE | D6: 03.01 INDUSTRIA E SERVIZI | E6: CUP da generare a seguito della selezione dei progetti tramite Bando | F6: Fondo di rotazione "Anticrisi Attività Produttive” | G6: 21,000,000.00 | H6: 21,000,000.00 | I6: 0 | L6: 3,000,000.00 | M6: 18,000,000.00
A7: FSCRI_RM_1744 | B7: REGIONE DEL VENETO | C7: 03. COMPETITIVITA' IMPRESE | D7: 03.01 INDUSTRIA E SERVIZI | E7: CUP da generare a seguito della selezione dei progetti tramite Bando | F7: Fondo Veneto Competitività - Sezione Transizione FSC | G7: 14,150,000.00 | H7: 14,150,000.00 | I7: 0 | L7: 2,000,000.00 | M7: 9,750,000.00 | N7: 2,400,000.00
A8: FSCRI_RI_382 | B8: CONSORZIO DI BONIFICA BACCHIGLIONE | C8: 05. AMBIENTE E RISORSE NATURALI | D8: 05.01 RISCHI E ADATTAMENTO CLIMATICO | E8: F41B21007590001 | F8: OTTIMIZZAZIONE BACINO PRATIARCATI - NUOVO COLLETTORE CARPANEDO-SABBIONI – 2° STRALCIO FUNZIONALE B | G8: 9,350,101.09 | H8: 3,600,000.00 | I8: 5,750,101.09 | J8: - | K8: 0 | L8: 1,000,000.00 | M8: 2,000,000.00 | N8: 600,000.00
A9: FSCRI_RI_383 | B9: CONSORZIO DI BONIFICA ACQUE RISORGIVE | C9: 05. AMBIENTE E RISORSE NATURALI | D9: 05.01 RISCHI E ADATTAMENTO CLIMATICO | E9: I66F23000140002 | F9: FIUME MARZENEGO: CASSE DI ESPANSIONE E LAMINAZIONE PER LA RIDUZIONE DEI PICCHI DI PIENA – LOTTO 2 | G9: 6,500,000.00 | H9: 6,500,000.00 | I9: 0 | L9: 69,000.00 | M9: 725,000.00 | N9: 2,170,000.00 | O9: 1,960,000.00 | P9: 636,000.00 | Q9: 559,000.00 | R9: 381,000.00
A10: FSCRI_RI_384 | B10: CONSORZIO DI BONIFICA BRENTA – CITTADELLA (PD) | C10: 05. AMBIENTE E RISORSE NATURALI | D10: 05.01 RISCHI E ADATTAMENTO CLIMATICO | E10: J61B21004140001 | F10: TRASFORMAZIONE IRRIGUA NEI COMUNI DI CASSOLA, ROSÀ, ROSSANO VENETO E TEZZE SUL BRENTA PROV. VICENZA | G10: 9,750,000.00 | H10: 9,750,000.00 | I10: 0 | J10: 0 | K10: 0 | L10: 4,350,000.00 | M10: 4,700,000.00 | N10: 700,000.00
A11: FSCRI_RI_407 | B11: REGIONE DEL VENETO – GIUNTA REGIONALE - DIREZIONE DIFESA DEL SUOLO E DELLA COSTA, SOS LAVORI E SERVIZI TECNICI | C11: 05. AMBIENTE E RISORSE NATURALI | D11: 05.01 RISCHI E ADATTAMENTO CLIMATICO | E11: H81B21000580002 | F11: REALIZZAZIONE DI UN INVASO (C.D. ANCONETTA) SUL FIUME AGNO GUÀ-S.CATERINA. ID PIANO 212. 2° STRALCIO | G11: 8,000,000.00 | H11: 8,000,000.00 | I11: 0 | K11: 0 | L11: 2,500,000.00 | M11: 2,500,000.00 | N11: 3,000,000.00
A12: FSCRI_RI_412 | B12: REGIONE DEL VENETO – GIUNTA REGIONALE - DIREZIONE DIFESA DEL SUOLO E DELLA COSTA, SOS LAVORI E SERVIZI TECNICI | C12: 05. AMBIENTE E RISORSE NATURALI | D12: 05.01 RISCHI E ADATTAMENTO CLIMATICO | E12: H52B23002650003 | F12: REALIZZAZIONE DELLA CASSA DI LAMINAZIONE SUL FIUME LIVENZA IN LOCALITÀ PRÀ DEI GAI. 2° STRALCIO | G12: 48,235,658.81 | H12: 30,500,000.00 | I12: 17,735,658.81 | M12: 5,000,000.00 | N12: 10,000,000.00 | O12: 10,000,000.00 | P12: 5,500,000.00
A13: FSCRI_RI_416 | B13: REGIONE DEL VENETO – GIUNTA REGIONALE - DIREZIONE DIFESA DEL SUOLO E DELLA COSTA, SOS LAVORI E SERVIZI TECNICI | C13: 05. AMBIENTE E RISORSE NATURALI | D13: 05.01 RISCHI E ADATTAMENTO CLIMATICO | E13: H62B23002770001 | F13: LAVORI DI SISTEMAZIONE DEL T. ARPEGA FINO ALLA CONFLUENZA CON IL BACINO SUL F. AGNO-GUÀ. 2° STRALCIO | G13: 3,000,000.00 | H13: 3,000,000.00 | I13: 0 | K13: 0 | L13: 2,500,000.00 | M13: 500,000.00
A14: FSCRI_RI_457 | B14: REGIONE DEL VENETO – GIUNTA REGIONALE - DIREZIONE DIFESA DEL SUOLO E DELLA COSTA, SOS LAVORI E SERVIZI TECNICI | C14: 05. AMBIENTE E RISORSE NATURALI | D14: 05.01 RISCHI E ADATTAMENTO CLIMATICO | E14: H52B23002660001 | F14: REALIZZAZIONE DELLA CASSA DI LAMINAZIONE SUL FIUME LIVENZA IN LOCALITÀ PRÀ DEI GAI. 3° STRALCIO | G14: 9,500,000.00 | H14: 9,500,000.00 | I14: 0 | M14: 3,000,000.00 | N14: 3,000,000.00 | O14: 3,000,000.00 | P14: 500,000.00
A15: FSCRI_RI_462 | B15: CONSORZIO BONIFICA ALTA PIANURA VENETA | C15: 05. AMBIENTE E RISORSE NATURALI | D15: 05.01 RISCHI E ADATTAMENTO CLIMATICO | E15: B47H21005110001 | F15: RICOSTRUZIONE IDRAULICA TORRENTE MEZZANE SEZIONI DI DEFLUSSO COMUNE MEZZANE DI S.E LAVAGNO 21_013_FI | G15: 900,000.00 | H15: 900,000.00 | I15: 0 | K15: 0 | L15: 450,000.00 | M15: 450,000.00
A16: FSCRI_RI_465 | B16: CONSORZIO DI BONIFICA BACCHIGLIONE | C16: 05. AMBIENTE E RISORSE NATURALI | D16: 05.01 RISCHI E ADATTAMENTO CLIMATICO | E16: F28H24000180001 | F16: RIPRISTINO SICUREZZA IDRAULICA RETE DI BONIFICA IN COMUNI VARI DELLA PROVINCIA DI PADOVA – STRALCIO | G16: 500,000.00 | H16: 500,000.00 | I16: 0 | K16: 0 | L16: 250,000.00 | M16: 250,000.00
A17: FSCRI_RI_1667 | B17: CONSORZIO DI BONIFICA PIAVE | C17: 05. AMBIENTE E RISORSE NATURALI | D17: 05.01 RISCHI E ADATTAMENTO CLIMATICO | E17: H78H23000530005 | F17: RIPRISTINO DANNI OPERE PUBBLICHE IRRIGUE NEL TERRITORIO DELLE PROVINCE DI TREVISO E VENEZIA | G17: 500,000.00 | H17: 500,000.00 | I17: 0 | K17: 0 | L17: 200,000.00 | M17: 300,000.00
A18: FSCRI_RI_483 | B18: CONSORZIO DI BONIFICA ALTA PIANURA VENETA | C18: 05. AMBIENTE E RISORSE NATURALI | D18: 05.01 RISCHI E ADATTAMENTO CLIMATICO | E18: B34G23000010001 | F18: RECUPERO AREA DELLA CAVA "GUAINETTA" PER IRRIGAZIONE E LAMINAZIONE A SAN MARTINO BUON ALBERGO (VR) | G18: 3,000,000.00 | H18: 3,000,000.00 | I18: 0 | J18: =100000-100000 -> 0 | K18: 0 | L18: =1500000+100000 -> 1,600,000.00 | M18: 1,000,000.00 | N18: 400,000.00
A19: FSCRI_RI_484 | B19: CONSORZIO DI BONIFICA DELTA DEL PO | C19: 05. AMBIENTE E RISORSE NATURALI | D19: 05.01 RISCHI E ADATTAMENTO CLIMATICO | E19: J38H23001240001 | F19: MESSA IN SICUREZZA E RIORDINO IDRAULICO DELLA RETE IDRAULICA SECONDARIA TRA I FIUMI BRENTA E PO | G19: 1,000,000.00 | H19: 1,000,000.00 | I19: 0 | L19: 450,000.00 | M19: 550,000.00
A20: FSCRI_RI_485 | B20: REGIONE DEL VENETO – GIUNTA REGIONALE - DIREZIONE DIFESA DEL SUOLO E DELLA COSTA, SOS LAVORI E SERVIZI TECNICI | C20: 05. AMBIENTE E RISORSE NATURALI | D20: 05.01 RISCHI E ADATTAMENTO CLIMATICO | E20: H62B23002760001 | F20: INTERVENTI DI DIAFRAMMATURA E RINFORZO ARGINALE DEL FIUME PIAVE NEL BASSO CORSO. COMUNI VARI | G20: 9,000,000.00 | H20: 9,000,000.00 | I20: 0 | L20: 3,000,000.00 | M20: 3,000,000.00 | N20: 3,000,000.00
A21: FSCRI_RI_486 | B21: REGIONE DEL VENETO – GIUNTA REGIONALE - DIREZIONE DIFESA DEL SUOLO E DELLA COSTA, SOS LAVORI E SERVIZI TECNICI | C21: 05. AMBIENTE E RISORSE NATURALI | D21: 05.01 RISCHI E ADATTAMENTO CLIMATICO | E21: H88H23000300001 | F21: INTERVENTI DI DIAFRAMMATURA E RINFORZO DELLE ARGINATURE DEL FIUME TAGLIAMENTO NEL BASSO CORSO | G21: 23,500,000.00 | H21: 23,500,000.00 | I21: 0 | L21: 2,000,000.00 | M21: 4,000,000.00 | N21: 6,000,000.00 | O21: 6,000,000.00 | P21: 5,500,000.00
A22: FSCRI_RI_487 | B22: CONSORZIO DI BONIFICA VENETO ORIENTALE | C22: 05. AMBIENTE E RISORSE NATURALI | D22: 05.01 RISCHI E ADATTAMENTO CLIMATICO | E22: C98H23000390001 | F22: INTERVENTI DI MANUTENZIONE STRAORDINARIA DEL SISTEMA IDRAULICO FOSSETTA – VELA (STRALCIO FUNZIONALE) | G22: 800,000.00 | H22: 800,000.00 | I22: 0 | K22: 0 | L22: 450,000.00 | M22: 350,000.00
A23: FSCRI_RI_494 | B23: CONSORZIO DI BONIFICA BRENTA – CITTADELLA (PD) | C23: 05. AMBIENTE E RISORSE NATURALI | D23: 05.01 RISCHI E ADATTAMENTO CLIMATICO | E23: J18H23000700002 | F23: SISTEMAZIONE E RICALIBRATURA RIO SETTIMO COMUNI LONGARE, TORRI DI QUARTESOLO E MONTEGALDA - STRALCIO | G23: 800,000.00 | H23: 800,000.00 | I23: 0 | K23: 0 | L23: 680,000.00 | M23: 120,000.00
A24: FSCRI_RI_496 | B24: CONSORZIO DI BONIFICA ADIGE PO DI ROVIGO | C24: 05. AMBIENTE E RISORSE NATURALI | D24: 05.01 RISCHI E ADATTAMENTO CLIMATICO | E24: F18H24000070006 | F24: MESSA IN SICUREZZA/RIORDINO IDRAULICO RETE SECONDARIA TRA ADIGE -BRENTA E CANALBIANCO 1° STRALCIO | G24: 800,000.00 | H24: 800,000.00 | I24: 0 | K24: 0 | L24: 350,000.00 | M24: 450,000.00
A25: FSCRI_RI_497 | B25: CONSORZIO DI BONIFICA DELTA DEL PO | C25: 05. AMBIENTE E RISORSE NATURALI | D25: 05.01 RISCHI E ADATTAMENTO CLIMATICO | E25: J68H23000710001 | F25: ADEGUAMENTO RETE SECONDARIA, MANUFATTI E RIPRESA FRANAMENTI TERRITORIO DEL DELTA DEL PO 1° STRALCIO | G25: 800,000.00 | H25: 800,000.00 | I25: 0 | L25: 350,000.00 | M25: 450,000.00
A26: FSCRI_RI_498 | B26: CONSORZIO DI BONIFICA VERONESE | C26: 05. AMBIENTE E RISORSE NATURALI | D26: 05.01 RISCHI E ADATTAMENTO CLIMATICO | E26: C87H21000730001 | F26: MESSA IN SICUREZZA FIUME MENAGO NEI COMUNI DI OPPEANO, BOVOLONE E CEREA (VR) - STRALCIO FUNZIONALE | G26: 800,000.00 | H26: 800,000.00 | I26: 0 | L26: 500,000.00 | M26: 300,000.00
A27: FSCRI_RI_503 | B27: CONSORZIO DI BONIFICA ADIGE EUGANEO | C27: 05. AMBIENTE E RISORSE NATURALI | D27: 05.01 RISCHI E ADATTAMENTO CLIMATICO | E27: B32B23001120002 | F27: LAVORI URGENTI INDIFFERIBILI ADEGUAMENTO IMPIANTI NORMADK5600 E MANUTENZIONE IDROVORE ASSERVITE INMT | G27: 800,000.00 | H27: 800,000.00 | I27: 0 | K27: 0 | L27: 650,000.00 | M27: 150,000.00
A28: FSCRI_RI_504 | B28: CONSORZIO DI BONIFICA PIAVE | C28: 05. AMBIENTE E RISORSE NATURALI | D28: 05.01 RISCHI E ADATTAMENTO CLIMATICO | E28: H58H23000360005 | F28: RIPRISTINO IDRAULICO CORSI ACQUA DEMANIALI, ELETTRIFICAZIONE CHIAVICHE E SGRIGLIATORI 1° STRALCIO | G28: 800,000.00 | H28: 800,000.00 | I28: 0 | L28: 600,000.00 | M28: 200,000.00
A29: FSCRI_RI_1668 | B29: VENETO ACQUE S.P.A | C29: 05. AMBIENTE E RISORSE NATURALI | D29: 05.02 RISORSE IDRICHE | E29: J12E24000140007 | F29: MO.S.A.V. CONDOTTA DI ADDUZIONE PRIMARIA DN 1000 TRA PIAZZOLA SUL BRENTA (PD) E VICENZA EST | G29: 8,000,000.00 | H29: 3,750,000.00 | I29: 4,250,000.00 | J29: 0 | L29: =101351.35+10135.14 -> 111,486.49 | M29: 684,121.62 | N29: 810,810.81 | O29: 810,810.81 | P29: 810,810.81 | Q29: 521,959.46
A30: FSCRI_RI_418 | B30: COMUNI DEL TERRITORIO MONTANO DELLE PROVINCE DI VERONA, VICENZA, TREVISO E BELLUNO. | C30: 05. AMBIENTE E RISORSE NATURALI | D30: 05.05 NATURA E BIODIVERSITÀ | E30: CUP da generare a seguito della selezione dei progetti tramite Bando o riparto a regia regionale | F30: MELKEN. NUOVI METODI DI PREVENZIONE DELLE PREDAZIONI DA LUPO IN MALGA | G30: 1,270,274.00 | H30: 1,000,000.00 | I30: 270,274.00 | L30: 200,000.00 | M30: 200,000.00 | N30: 200,000.00 | O30: 200,000.00 | P30: 100,000.00 | Q30: 50,000.00 | R30: 50,000.00
A31: FSCRI_RM_1750 | B31: REGIONE DEL VENETO | C31: 05. AMBIENTE E RISORSE NATURALI | D31: 05.05 NATURA E BIODIVERSITÀ | E31: CUP da generare a seguito della selezione dei progetti tramite Bando | F31: MELKEN "PREVENZIONE DELLE PREDAZIONI DA LUPO IN MALGA CON RECINZIONI ELETTRIFICATE: ANALISI DELLE MODIFICHE DEL PASCOLAMENTO, DEL PASCOLO E DEGLI EPISODI DI ATTACCO" - BENEFICIARI: PRIVATI | G31: 1,000,000.00 | H31: 1,000,000.00 | I31: 0 | L31: 200,000.00 | M31: 200,000.00 | N31: 200,000.00 | O31: 200,000.00 | P31: 100,000.00 | Q31: 50,000.00 | R31: 50,000.00
A32: FSCRI_RI_422 | B32: REGIONE DEL VENETO | C32: 05. AMBIENTE E RISORSE NATURALI | D32: 05.05 NATURA E BIODIVERSITÀ | E32: J27D24000000002 | F32: INTERVENTI PER LA VIVIFICAZIONE DEGLI AMBITI LAGUNARI DEL DELTA DEL PO | G32: 14,000,000.00 | H32: 14,000,000.00 | I32: 0 | K32: 0 | L32: 300,000.00 | M32: 1,300,000.00 | N32: 2,500,000.00 | O32: 2,500,000.00 | P32: 2,500,000.00 | Q32: 2,500,000.00 | R32: 2,400,000.00
A33: FSCRI_RI_1664 | B33: ENTI LOCALI, ENTI PUBBLICI, FONDAZIONI A PARTECIPAZIONE PUBBLICA. | C33: 06. CULTURA | D33: 06.01 PATRIMONIO E PAESAGGIO | E33: CUP da generare a seguito della selezione dei progetti tramite Bando | F33: BANDO PER IL FINANZIAMENTO DI INTERVENTI DI VALORIZZAZIONE E RECUPERO DI BENI IMMOBILI DI PREGIO | G33: 5,500,000.00 | H33: 2,750,000.00 | I33: 2,750,000.00 | M33: 275,000.00 | N33: 275,000.00 | O33: 440,000.00 | P33: 550,000.00 | Q33: 550,000.00 | R33: 660,000.00
A34: FSCRI_RM_1746 | B34: REGIONE DEL VENETO | C34: 06. CULTURA | D34: 06.01 PATRIMONIO E PAESAGGIO | E34: CUP da generare a seguito della selezione dei progetti tramite Bando | F34: INTERVENTI DI VALORIZZAZIONE E RECUPERO DI BENI IMMOBILI DI PREGIO, DI CUI SI ASSICURI LA SOSTENIBILITÀ GESTIONALE, MIRATI A PROMUOVERE LO SVILUPPO SOSTENIBILE ANCHE DA UN PUNTO DI VISTA DELL'EFFICIENZA ENERGETICA - BENEFICIARI:PARROCCHIE ED ENTI ECCLESIASTICI | G34: 1,000,000.00 | H34: 1,000,000.00 | I34: 0 | M34: 200,000.00 | N34: 200,000.00 | O34: 200,000.00 | P34: 200,000.00 | Q34: 200,000.00
A35: FSCRI_RI_425 | B35: SOGGETTO BENEFICIARIO COORDINATORE TERRITORIALE: REGIONE DEL VENETO -SOGGETTO ATTUATORE: VENETO STRADE S.P.A. | C35: 07. TRASPORTI E MOBILITÀ | D35: 07.01 TRASPORTO STRADALE | E35: D81B24000000001 | F35: CICLOVIA NAZIONALE "DEL GARDA" TRATTO VENETO - 5° LOTTO 1° STRALCIO | G35: 6,500,000.00 | H35: 6,500,000.00 | I35: 0 | L35: =1629920+122000 -> 1,751,920.00 | M35: 2,470,526.00 | N35: 1,627,554.00 | O35: 650,000.00
A36: FSCRI_RI_431 | B36: SOGGETTO BENEFICIARIO COORDINATORE TERRITORIALE: REGIONE DEL VENETO - DIREZIONE INFRASTRUTTURE E TRASPORTI SOGGETTO ATTUATORE: VENETO STRADE S.P.A. | C36: 07. TRASPORTI E MOBILITÀ | D36: 07.01 TRASPORTO STRADALE | E36: D71B21005180002 | F36: PISTA CICLABILE TREVISO – OSTIGLIA - TRATTO TRA GRISIGNANO DI ZOCCO (VI) E CASALEONE (VR) - LOTTO 3 | G36: 7,394,041.84 | H36: 1,773,000.00 | I36: 5,621,041.84 | K36: 0 | L36: 1,773,000.00
A37: FSCRI_RI_1685 | B37: SOGGETTO BENEFICIARIO COORDINATORE TERRITORIALE: REGIONE DEL VENETO / SOGGETTO ATTUATORE: VENETO STRADE S.P.A. | C37: 07. TRASPORTI E MOBILITÀ | D37: 07.01 TRASPORTO STRADALE | E37: D21B24000000001 | F37: Variante alla S.R. 10 "Padana Inferiore" tra Cerea (VR) e Sanguinetto (VR) 1° Stralcio | G37: 85,000,000.00 | H37: 20,000,000.00 | I37: 65,000,000.00 | M37: 5,397,197.65 | N37: 5,796,414.12 | O37: 5,796,414.12 | P37: 3,009,974.11
A38: FSCRI_RI_1584 | B38: REGIONE DEL VENETO / VENETO STRADE S.P.A. | C38: 07. TRASPORTI E MOBILITÀ | D38: 07.01 TRASPORTO STRADALE | E38: D71B24000010001 | F38: CICLOVIA NAZIONALE "ADRIATICA" – 4° LOTTO | G38: 2,500,000.00 | H38: 2,500,000.00 | I38: 0 | L38: =692032.8+49715 -> 741,747.80 | M38: 1,003,579.48 | N38: 754,672.72
A39: FSCRI_RI_436 | B39: REGIONE DEL VENETO / VENETO STRADE S.P.A. | C39: 07. TRASPORTI E MOBILITÀ | D39: 07.01 TRASPORTO STRADALE | E39: D71B24000060001 | F39: CICLOVIA NAZIONALE "DEL GARDA" TRATTO VENETO - 5° LOTTO 2° STRALCIO | G39: 5,568,037.48 | H39: 5,568,037.48 | I39: 0 | K39: 0 | L39: 1,500,731.72 | M39: 1,719,516.20 | N39: 1,951,000.93 | O39: 396,788.63
A40: FSCRI_RI_1588 | B40: SOGGETTO BENEFICIARIO COORDINATORE TERRITORIALE: REGIONE DEL VENETO / SOGGETTO ATTUATORE: VENETO STRADE S.P.A. | C40: 07. TRASPORTI E MOBILITÀ | D40: 07.01 TRASPORTO STRADALE | E40: D31B24000020001 | F40: CICLOVIA NAZIONALE "VENTO" – 4° LOTTO FUNZIONALE | G40: 2,500,000.00 | H40: 2,500,000.00 | I40: 0 | K40: 0 | L40: =692032.8+49715 -> 741,747.80 | M40: 1,003,579.48 | N40: 754,672.72
A41: FSCRI_RI_458 | B41: SOGGETTO BENEFICIARIO REGIONE DEL VENETO SOGGETTO ATTUATORE VENETO STRADE S.P.A. | C41: 07. TRASPORTI E MOBILITÀ | D41: 07.01 TRASPORTO STRADALE | E41: D21B19000600002 | F41: PISTA CICLABILE TREVISO OSTIGLIA NEL TRATTO TRA GRISIGNANO DI ZOCCO (VI) E CASALEONE (VR) – LOTTO 2 | G41: 3,019,590.68 | H41: 320,000.00 | I41: 2,699,590.68 | K41: 0 | L41: 320,000.00
A42: FSCRI_RI_459 | B42: SOGGETTO BENEFICIARIO REGIONE DEL VENETO SOGGETTO ATTUATORE VENETO STRADE S.P.A. | C42: 07. TRASPORTI E MOBILITÀ | D42: 07.01 TRASPORTO STRADALE | E42: H31B18000550001 | F42: PISTA CICLABILE TREVISO OSTIGLIA NEL TRATTO TRA GRISIGNANO DI ZOCCO (VI) E CASALEONE (VR) – LOTTO 1 | G42: 2,023,000.00 | H42: 223,000.00 | I42: 1,800,000.00 | K42: 0 | L42: 223,000.00
A43: FSCRI_RI_489 | B43: SOGGETTO BENEFICIARIO REGIONE DEL VENETO, SOGGETTO ATTUATORE VENETO STRADE SPA | C43: 07. TRASPORTI E MOBILITÀ | D43: 07.01 TRASPORTO STRADALE | E43: D41B21002320005 | F43: CPASS/3–INT.31 TERRAGLIO EST OPERE 2 STR.-COMPLETAMENTO DA VIA DELL'INDUSTRIE-CASIER A SR53 POSTUMIA | G43: 38,208,059.70 | H43: 36,000,000.00 | I43: 2,208,059.70 | K43: 0 | L43: =5000000+80000 -> 5,080,000.00 | M43: 13,000,000.00 | N43: 9,320,000.00 | O43: 8,600,000.00
A44: FSCRI_RI_524 | B44: SOGGETTO BENEFICIARIO REGIONE DEL VENETO - SOGGETTO ATTUATORE VENETO STRADE SPA | C44: 07. TRASPORTI E MOBILITÀ | D44: 07.01 TRASPORTO STRADALE | E44: D71B22001250002 | F44: PISTA CICLABILE TREVISO OSTIGLIA NEL TRATTO TRA GRISIGNANO DI ZOCCO (VI) E CASALEONE (VR) – LOTTO 7 | G44: 6,684,000.00 | H44: 684,000.00 | I44: 6,000,000.00 | K44: 0 | L44: 684,000.00
A45: FSCRI_RI_429 | B45: SOGGETTO BENEFICIARIO REGIONE DEL VENETO - SOGGETTO ATTUATORE INFRASTRUTTURE VENETE SRL | C45: 07. TRASPORTI E MOBILITÀ | D45: 07.02 TRASPORTO FERROVIARIO | E45: I95B23000390001 | F45: LINEA ADRIA-MESTRE - REALIZZAZIONE INDIPENDENZE DELLE STAZIONI CAVARZERE, CONA, CAMPAGNA LUPIA, MIRA | G45: 2,200,000.00 | H45: 2,200,000.00 | I45: 0 | K45: 0 | L45: 1,900,000.00 | M45: 300,000.00 | N45: 0
A46: FSCRI_RI_433 | B46: SOGGETTO BENEFICIARIO: REGIONE DEL VENETO - SOGGETTO ATTUATORE: INFRASTRUTTURE VENETE SRL | C46: 07. TRASPORTI E MOBILITÀ | D46: 07.02 TRASPORTO FERROVIARIO | E46: I61J20000090002 | F46: LINEA ADRIA–MESTRE - SOPPRESSIONE DEI P.L. NEI COMUNI MIRA E DOLO E NUOVA CICLOPEDONALE COMUNE MIRA | G46: 2,775,200.00 | H46: 1,250,000.00 | I46: 1,525,200.00 | K46: 0 | L46: =500000+100000 -> 600,000.00 | M46: 650,000.00
A47: FSCRI_RI_437 | B47: SOGGETTO BENEFICIARIO REGIONE VENETO - SOGGETTO ATTUATORE INFRASTRUTTURE VENETE SRL | C47: 07. TRASPORTI E MOBILITÀ | D47: 07.02 TRASPORTO FERROVIARIO | E47: I35B23000440001 | F47: LINEA ADRIA–MESTRE - MANUTENZIONE STRAORDINARIA OPERE D’ARTE (APPOGGI PONTI METALLICI-PONTE SERIOLA) | G47: 1,000,000.00 | H47: 1,000,000.00 | I47: 0 | L47: 50,000.00 | M47: 700,000.00 | N47: 250,000.00
A48: FSCRI_RI_438 | B48: SOGGETTO BENEFICIARIO COORDINATORE TERRITORIALE: REGIONE DEL VENETO / SOGGETTO ATTUATORE: INFRASTRUTTURE VENETE SRL. | C48: 07. TRASPORTI E MOBILITÀ | D48: 07.02 TRASPORTO FERROVIARIO | E48: I58E23000330001 | F48: LINEA ADRIA - MESTRE. RISTRUTTURAZIONE EDIFICIO CANTONIERI PIOVE DI SACCO | G48: 750,000.00 | H48: 750,000.00 | I48: 0 | L48: 50,000.00 | M48: 550,000.00 | N48: 150,000.00
A49: FSCRI_RI_440 | B49: SOGGETTO BENEFICIARIO REGIONE DEL VENETO, SOGGETTO ATTUATORE INFRASTRUTTURE VENETE SRL | C49: 07. TRASPORTI E MOBILITÀ | D49: 07.02 TRASPORTO FERROVIARIO | E49: I56C23000080001 | F49: LINEA ADRIA–MESTRE -SOSTITUZIONE BLOCCO CONTA ASSI (DA BCA1 A BCA2) PER LA TRATTA PIOVE DI S.-MESTRE | G49: 500,000.00 | H49: 500,000.00 | I49: 0 | L49: 200,000.00 | M49: 300,000.00
A50: FSCRI_RI_441 | B50: SOGGETTO BENEFICIARIO REGIONE DEL VENETO - SOGGETTO ATTUATORE INFRASTRUTTURE VENETE SRL | C50: 07. TRASPORTI E MOBILITÀ | D50: 07.02 TRASPORTO FERROVIARIO | E50: I51G23000110001 | F50: LINEA ADRIA-MESTRE -SOTTOPASSO PIOVE DI SACCO-II STRALCIO (FORNITURA ASCENSORI E OPERE DI FINITURA) | G50: 350,000.00 | H50: 350,000.00 | I50: 0 | L50: 350,000.00
A51: FSCRI_RI_442 | B51: SOGGETTO BENEFICIARIO REGIONE DEL VENETO, SOGGETTO ATTUATORE INFRASTRUTTURE VENETE SRL | C51: 07. TRASPORTI E MOBILITÀ | D51: 07.02 TRASPORTO FERROVIARIO | E51: I57D23000020002 | F51: LINEA ADRIA-MESTRE - INTERVENTO DI SISTEMAZIONE PIAZZALE CARBURANTI PRESSO OFFICINA | G51: 645,798.00 | H51: 350,000.00 | I51: 295,798.00 | K51: 0 | L51: =100000+250000 -> 350,000.00
A52: FSCRI_RI_443 | B52: SOGGETTO BENEFICIARIO REGIONE DEL VENETO, SOGGETTO ATTUATORE INFRASTRUTTURE VENETE SRL | C52: 07. TRASPORTI E MOBILITÀ | D52: 07.02 TRASPORTO FERROVIARIO | E52: I56C23000060001 | F52: LINEA ADRIA–MESTRE-REALIZZAZIONE SISTEMA SEGNALAMENTO STAZ.PIOVE DI SACCO.FASCIO BINARI DI MOVIMENT. | G52: 600,000.00 | H52: 600,000.00 | I52: 0 | L52: 300,000.00 | M52: 300,000.00
A53: FSCRI_RI_444 | B53: SOGGETTO BENEFICIARIO COORDINATORE TERRITORIALE: REGIONE DEL VENETO / SOGGETTO ATTUATORE: INFRASTRUTTURE VENETE SRL. | C53: 07. TRASPORTI E MOBILITÀ | D53: 07.02 TRASPORTO FERROVIARIO | E53: I37D23000070001 | F53: LINEA ADRIA - MESTRE. INTERVENTI DI RISOLUZIONE PUNTI CRITICI RISCHIO IDROGEOLOGICO | G53: 1,000,000.00 | H53: 1,000,000.00 | I53: 0 | L53: 50,000.00 | M53: 200,000.00 | N53: 300,000.00 | O53: 450,000.00
A54: FSCRI_RI_445 | B54: SOGGETTO BENEFICIARIO REGIONE DEL VENETO - SOGGETTO ATTUATORE INFRASTRUTTURE VENETE SRL | C54: 07. TRASPORTI E MOBILITÀ | D54: 07.02 TRASPORTO FERROVIARIO | E54: I13I23000150001 | F54: LINEA ADRIA-MESTRE - ADEGUAMENTO STAZIONI E FERMATE PER PERSONALE RIDOTTA MOBILITÀ - I LOTTO | G54: 2,000,000.00 | H54: 2,000,000.00 | I54: 0 | L54: 50,000.00 | M54: 800,000.00 | N54: 800,000.00 | O54: 350,000.00
A55: FSCRI_RI_508 | B55: SOGGETTO BENEFICIARIO COORDINATORE TERRITORIALE: REGIONE DEL VENETO - SOGGETTO ATTUATORE: GESTORE DI IMPIANTI DI RISALITA | C55: 07. TRASPORTI E MOBILITÀ | D55: 07.02 TRASPORTO FERROVIARIO | E55: CUP da generare a seguito della selezione dei progetti tramite Bando o riparto a regia regionale | F55: REALIZZAZIONE BACINI IDRICI AI FINI DI INNEVAMENTO | G55: 4,000,000.00 | H55: 2,000,000.00 | I55: 2,000,000.00 | M55: 250,000.00 | N55: 250,000.00 | O55: 500,000.00 | P55: 1,000,000.00
A56: FSCRI_RI_509 | B56: SOGGETTO BENEFICIARIO E COORDINATORE TERRITORIALE: REGIONE DEL VENETO - SOGGETTO ATTUATORE: GESTORE IMPIANTI RISALITA | C56: 07. TRASPORTI E MOBILITÀ | D56: 07.02 TRASPORTO FERROVIARIO | E56: H62D24000010008 | F56: COLLEGAMENTO SKI AREA DEL CIVETTA CON SKI AREA 5 TORRI – 1° STRALCIO | G56: 22,692,000.00 | H56: 14,000,000.00 | I56: 8,692,000.00 | M56: 250,000.00 | N56: 750,000.00 | O56: 3,000,000.00 | P56: 10,000,000.00
A57: FSCRI_RI_510 | B57: SOGGETTO BENEFICIARIO COORDINATORE TERRITORIALE: REGIONE DEL VENETO -SOGGETTO ATTUATORE: GESTORE DI IMPIANTI DI RISALITA | C57: 07. TRASPORTI E MOBILITÀ | D57: 07.02 TRASPORTO FERROVIARIO | E57: H62D24000020001 | F57: COLLEGAMENTO SKI AREA DEL CIVETTA CON SKI AREA 5 TORRI – 2° STRALCIO | G57: 17,500,000.00 | H57: 17,500,000.00 | I57: 0 | M57: 500,000.00 | N57: 2,000,000.00 | O57: 3,000,000.00 | P57: 12,000,000.00
A58: FSCRI_RI_1596 | B58: REGIONE DEL VENETO | C58: 07. TRASPORTI E MOBILITÀ | D58: 07.05 MOBILITÀ URBANA | E58: CUP da generare a seguito della selezione dei progetti tramite Bando o riparto a regia regionale | F58: PIANO REGIONALE DELLA MOBILITÀ CICLISTICA | G58: 12,500,000.00 | H58: 12,500,000.00 | I58: 0 | L58: 0 | M58: 1,250,000.00 | N58: 3,750,000.00 | O58: 5,000,000.00 | P58: 2,500,000.00
A59: FSCRI_RI_488 | B59: SOGGETTO BENEFICIARIO COORDINATORE TERRITORIALE: REGIONE DEL VENETO -SOGGETTO ATTUATORE: ENTI AFFIDANTI/AZIENDE AFFIDATARIE SERVIZI DI TPL | C59: 07. TRASPORTI E MOBILITÀ | D59: 07.05 MOBILITÀ URBANA | E59: CUP da generare a seguito della selezione dei progetti tramite Bando o riparto a regia regionale | F59: ACQUISTO MEZZI SU GOMMA PER IL TRASPORTO PUBBLICO LOCALE (TPL) | G59: 19,431,962.52 | H59: 19,431,962.52 | I59: 0 | M59: 4,431,962.52 | N59: 5,000,000.00 | O59: 10,000,000.00
C60: 07. TRASPORTI E MOBILITÀ Totale | G60: =SUBTOTAL(9,G35:G59) -> 247,341,690.22 | H60: =SUBTOTAL(9,H35:H59) -> 151,500,000.00 | I60: =SUBTOTAL(9,I35:I59) -> 95,841,690.22 | J60: =SUBTOTAL(9,J35:J59) -> 0 | K60: =SUBTOTAL(9,K35:K59) -> 0 | L60: =SUBTOTAL(9,L35:L59) -> 16,716,147.32 | M60: =SUBTOTAL(9,M35:M59) -> 35,076,361.33 | N60: =SUBTOTAL(9,N35:N59) -> 33,454,314.49 | O60: =SUBTOTAL(9,O35:O59) -> 37,743,202.75 | P60: =SUBTOTAL(9,P35:P59) -> 28,509,974.11 | Q60: =SUBTOTAL(9,Q35:Q59) -> 0 | R60: =SUBTOTAL(9,R35:R59) -> 0
A61: FSCRI_RI_447 | B61: COMUNI ED AZIENDE TERRITORIALI PER L’EDILIZIA RESIDENZIALE DEL VENETO. | C61: 08. RIQUALIFICAZIONE URBANA | D61: 08.01 EDILIZIA E SPAZI PUBBLICI | E61: CUP da generare a seguito della selezione dei progetti tramite Bando | F61: INTERVENTI DI MANUTENZIONE STRAORDINARIA ED EFFICIENTAMENTO ENERGETICO DI ALLOGGI E.R.P. | G61: 14,000,000.00 | H61: 14,000,000.00 | I61: 0 | L61: 0 | M61: 2,800,000.00 | N61: 6,000,000.00 | O61: 4,000,000.00 | P61: 1,200,000.00
A62: FSCRI_RI_460 | B62: REGIONE DEL VENETO / DIREZIONE GESTIONE DEL PATRIMONIO IN COLLABORAZIONE CON I SERVIZI AFFARI GENERALI DEL CONSIGLIO REGIONALE VENETO | C62: 08. RIQUALIFICAZIONE URBANA | D62: 08.01 EDILIZIA E SPAZI PUBBLICI | E62: H77D23000080003 | F62: RISTRUTTURAZIONE SEDE REGIONALE DI CALLE DUE PORTONI NEL COMPENDIO DI VILLA SETTEMBRINI A MESTRE | G62: 3,500,000.00 | H62: 2,000,000.00 | I62: 1,500,000.00 | L62: 400,000.00 | M62: 800,000.00 | N62: 800,000.00
A63: FSCRI_RI_461 | B63: REGIONE DEL VENETO / U.O. GENIO CIVILE ROVIGO | C63: 08. RIQUALIFICAZIONE URBANA | D63: 08.01 EDILIZIA E SPAZI PUBBLICI | E63: H18H24000030001 | F63: RISANAMENTO CONSERVATIVO DELL’EX GENIO CIVILE DI ROVIGO | G63: 4,000,000.00 | H63: 4,000,000.00 | I63: 0 | K63: 0 | L63: 400,000.00 | M63: 1,835,000.00 | N63: 1,765,000.00
A64: FSCRI_RI_463 | B64: REGIONE DEL VENETO / DIREZIONE GESTIONE DEL PATRIMONIO | C64: 08. RIQUALIFICAZIONE URBANA | D64: 08.01 EDILIZIA E SPAZI PUBBLICI | E64: H49D23000100001 | F64: MESSA IN SICUREZZA, CONSERVAZIONE E VALORIZZAZIONE DELL’EDIFICIO “CASA SALOTTO” - ROCCA DI MONSELICE | G64: 2,000,000.00 | H64: 2,000,000.00 | I64: 0 | L64: 150,000.00 | M64: 440,000.00 | N64: 840,000.00 | O64: 570,000.00
A65: FSCRI_RI_454 | B65: COMUNI DEL VENETO | C65: 10. SOCIALE E SALUTE | D65: 10.01 STRUTTURE SOCIALI | E65: CUP da generare a seguito della selezione dei progetti tramite Bando | F65: ADEGUAMENTO NORMATIVO, MIGLIORAMENTO E RISTRUTTURAZIONE DI IMPIANTI SPORTIVI DI ENTI LOCALI | G65: 10,000,000.00 | H65: 10,000,000.00 | I65: 0 | M65: 2,400,000.00 | N65: 2,600,000.00 | O65: 2,500,000.00 | P65: 2,500,000.00
A66: FSCRI_RI_1619 | B66: COMUNI DEL VENETO | C66: 10. SOCIALE E SALUTE | D66: 10.01 STRUTTURE SOCIALI | E66: CUP da generare a seguito della selezione dei progetti tramite Bando | F66: ADEGUAMENTO NORMATIVO, MIGLIORAMENTO E RISTRUTTURAZIONE DI IMPIANTI SPORTIVI DI ENTI LOCALI-INTEGRAZ | G66: 1,000,000.00 | H66: 1,000,000.00 | I66: 0 | M66: 200,000.00 | N66: 300,000.00 | O66: 250,000.00 | P66: 250,000.00
A67: FSCRI_RI_525 | B67: SOGGETTO PUBBLICO DA INDIVIDUARE / BANDO AD EVIDENZA PUBBLICA | C67: 10. SOCIALE E SALUTE | D67: 10.02 STRUTTURE E ATTREZZATURE SANITARIE | E67: CUP da generare a seguito della selezione dei progetti tramite Bando | F67: PROGETTO INNOVATIVO PER LA RIABILITAZIONE | G67: 13,000,000.00 | H67: 12,000,000.00 | I67: 1,000,000.00 | M67: 2,000,000.00 | N67: 5,000,000.00 | O67: 5,000,000.00
A68: FSCRI_RI_415 | B68: AZIENDA ULSS N. 2 “MARCA TREVIGIANA | C68: 10. SOCIALE E SALUTE | D68: 10.03 SERVIZI SOCIO-ASSISTENZIALI | E68: I65F23000490002 | F68: REALIZZAZIONE DI UN NUOVO POLO PER PERSONE CON DISABILITÀ IN COMUNE DI MOGLIANO VENETO (TV) | G68: 10,000,000.00 | H68: 3,000,000.00 | I68: 7,000,000.00 | M68: 1,000,000.00 | N68: 2,000,000.00
A69: FSCRI_RI_379 | B69: ESU - AZIENDE REGIONALI PER IL DIRITTO ALLO STUDIO UNIVERSITARIO DI PADOVA, DI VENEZIA E DI VERONA | C69: 11. ISTRUZIONE E FORMAZIONE | D69: 11.02 EDUCAZIONE E FORMAZIONE | E69: CUP da generare a seguito della selezione dei progetti tramite Bando | F69: OFFERTA DI SERVIZI ABITATIVI E DI RISTORAZIONE PER GLI STUDENTI UNIVERSITARI - BANDO | G69: 10,000,000.00 | H69: 10,000,000.00 | I69: 0 | K69: 0 | L69: 3,189,000.00 | M69: 3,551,000.00 | N69: 3,260,000.00
A70: FSCRI_RI_1615 | B70: REGIONE DEL VENETO | C70: 12. CAPACITÀ AMMINISTRATIVA | D70: 12.02 ASSISTENZA TECNICA | E70: CUP da generare a seguito della selezione dei progetti | F70: ASSISTENZA TECNICA ALL'ACCORDO PER LA COESIONE FSC 2021-2027 | G70: 15,372,385.77 | H70: 15,372,385.77 | I70: 0 | K70: 0 | L70: =2000000+100000 -> 2,100,000.00 | M70: 2,500,000.00 | N70: 2,000,000.00 | O70: 2,000,000.00 | P70: 2,500,000.00 | Q70: 2,500,000.00 | R70: 1,772,385.77
